{"text_format":"1","workbook":"xlsx","n_sheets":3,"sheets":["Randos","Articles divers","Feuil3"],"not_rendered":{"charts":0,"images":0,"macros":1,"external_links":0,"defined_names":2,"comments":0,"pivot_tables":0},"unopened":[],"bounds":{"document_bytes":16777216,"sheet_cells":100000,"rows_first":2000,"rows_last":500,"rows_between":2000,"halvings":0,"cell_chars":16384,"cell_head_chars":4096},"cells_cut":0,"cells_raw":0,"read":"whole","date_system":"1900"}

{"sheet":"Randos","index":0,"n_rows":481,"n_cols":11,"rows_kept":481,"cut":false,"hidden":false,"merged":[]}
["Région","Lieux de Départ","Ref Rando","Titre","Distance KM","Dénivelé +","Difficulté","VTT/VAE","Durée (H)","Durée (Mn)"]
["Thur","Cernay",1,"BALADE AUTOUR DE CERNAY",19.5,69,"FACILE (2/6)",null,"5 h",300," "]
["Thur","Uffholtz",2," MOLKENRAIN ET FREUNDSTEIN",20.9,848,"ASSEZ DIFFICILE (4/6)",null,"5 h 30 mn",330," "]
["Doller","Bourbach le Haut",3," THANNER HUBEL ET ROSSBERG",19.3,870,"ASSEZ DIFFICILE (4/6)",null,"5 h 45 mn",345," "]
["Doller","Rimbach près Masevaux",4," ENTRE RUCHBERG ET FUCHSFELSEN",13.5,564,"UN PEU DIFFICILE (3/6)",null,"4 h 30 mn",270," "]
["Thur","Moosch",5,"MOOSCH, RIVE DROITE",15.8,732,"UN PEU DIFFICILE (3/6)",null,"5 h",300," "]
["Thur","Cernay",6," OSTEIN ET HIRNELESTEIN",21.9,731,"UN PEU DIFFICILE (3/6)",null,"6 h",360," "]
["Thur","Cernay",7," GRAND BALLON, LE GRAND DÉFI",33.9,1668,"DIFFICILE (5/6)",null,"9 h30 mn",570," "]
["Doller","Michelbach",9," UNE GRANDE RANDONNÉE",21.5,545,"UN PEU DIFFICILE (3/6)",null,"5 h 30 mn",330," "]
["Vallée Noble","Wintzfelden",10," MAGIQUE PETIT BALLON",16.3,1182,"DIFFICILE (5/6)",null,"6 h 15 mn",375," "]
["Vallée Noble","Orschwihr",11," PETITE ESCAPADE AU BOLLENBERG",8.1,200,"FACILE (2/6)",null,"2 h 15 mn",135," "]
["Sundgau","Bernwiller",12," PREMIÈRE ESCAPADE DANS LE SUNDGAU ",30,376,"UN PEU DIFFICILE (3/6)",null,"7 h 45 mn",465," "]
["Thur","Cernay",13," DE LA BALLASTIÈRE À LA POUDRIÈRE",20.6,106,"FACILE (2/6)",null,"4 h 30 mn",270," "]
["Doller","Niederbruck",14," SURPRISE À LA FENNEMATT",14.9,711,"UN PEU DIFFICILE (3/6)",null,"5 h 30 mn",330," "]
["Thur","Cernay",16," LES PÈLERINS NE SONT PAS DES MENTEURS",24.5,245,"UN PEU DIFFICILE (3/6)",null,"5 h 30 mn",330," "]
["Thur","Kruth",17,"KRUTH-WILDENSTEIN, UN LAC, UN CHÂTEAU",7.4,168,"FACILE (2/6)",null,"2 h 15 mn",135," "]
["Crêtes (Sud)","Markstein",18," GRANDE ESCAPADE SUR LES CRÊTES",28.1,781,"ASSEZ DIFFICILE (4/6)",null,"8 h",480," "]
["Thur","Thann",19," MISE EN JAMBES THANNOISE",14.7,583,"UN PEU DIFFICILE (3/6)",null,"4 h",240," "]
["Thur","Husseren",20," LE ROUGE-GAZON NOUS TEND SES PERCHES",19.899999999999999,1109,"DIFFICILE (5/6)",null,"8 h",480," "]
["Lauch","Lautenbach-Zell",21," LA RANDO DES CASCADES",12.8,607,"UN PEU DIFFICILE (3/6)",null,"4 h 10 mn",250," "]
["Vosges","Col de Bussang",22," ESCAPADE DANS LES VOSGES VOSGIENNES",17.399999999999999,773,"ASSEZ DIFFICILE (4/6)",null,"5 h 40 mn",340," "]
["TDBelfort","Giromagny",23," LE BALLON D’ALSACE, FRANCHEMENT COMTÉ ",21.5,850,"ASSEZ DIFFICILE (4/6)",null,"6 h 50 mn",410," "]
["Doller","Masevaux",24," LE BAERENKOPF, TÊTE DES OURS",20,909,"ASSEZ DIFFICILE (4/6)",null,"6 h 15 mn",375," "]
["Thur","Steinbach",25,"STEINBACH, LE CIRCUIT DES DÉCOUVERTES",13.1,481,"FACILE (2/6)",null,"3 h 35 mn",205," "]
["Doller","Michelbach",26," UN PETIT CIRCUIT FAMILIAL",12.1,186,"FACILE (2/6)",null,"3 h",180," "]
["Lauch","Guebwiller",27,"SUR LES HAUTEURS DE GUEBWILLER",15.7,571,"UN PEU DIFFICILE (3/6)","x","4 h 10 mn",250," "]
["Thur","Cernay",28,"CERNAY, UN PETIT TOUR AUTOUR DE LA THUR","nc",0,"FACILE (2/6)",null,"2 h 15 mn",135," "]
["Thur","Wattwiller",29,"WATTWILLER, JE PRÉFÈRE MANGER À LA CANTINE",7.5,427,"UN PEU DIFFICILE (3/6)",null,"3 h",180," "]
["Doller","Soppe  le Bas",31," LE SOULTZBACH, ÇA VOUS PARLE",17.899999999999999,275,"FACILE (2/6)",null,"5 h",300," "]
["Thur","Uffholtz",32,"UFFHOLTZ, SUR LES HAUTEURS",13.6,549,"FACILE (2/6)",null,"3 h 45 mn",225," "]
["Lauch","Buhl",33," LE CIRCUIT DES COLS",13.1,660,"UN PEU DIFFICILE (3/6)",null,"4 h 30 mn",270," "]
["Thur","Kruth",34," LE GRAND VENTRON, AVEC LA GRANDE NEIGE",12.9,665,"UN PEU DIFFICILE (3/6)",null,"4 h 40 mn",280," "]
["Doller","Rimbach près Masevaux",35," NEUWEIHER ET PERCHES, LE CIRCUIT DES LACS",10.8,578,"UN PEU DIFFICILE (3/6)",null,"3 h 45 mn",225," "]
["Thur","Steinbach",37," MONTÉE AU REFUGE UTAN MOLKENRAIN",13.1,690,"UN PEU DIFFICILE (3/6)",null,"4 h",240," "]
["Thur","Kruth",38," CHALET BÉNI BENOÎT & SCHAFERT",10.4,498,"UN PEU DIFFICILE (3/6)",null,"4 h",240," "]
["Crêtes (Sud)","Firstacker",39," GRAND BALLON, LE PETIT CHEMIN",9.6999999999999993,488,"UN PEU DIFFICILE (3/6)",null,"3 h 30 mn",210," "]
["Thur","Fellering",40,"LE DRUMONT, DEPUIS FELLERING",16.100000000000001,733,"ASSEZ DIFFICILE (4/6)",null,"5 h 30 mn",330," "]
["Thur","Cernay",41," 1ER CIRCUIT HIVERNAL","nc",295,"FACILE (2/6)",null,"4 h",240," "]
["Thur","Cernay",42," 2ÈME CIRCUIT HIVERNAL","nc",540,"FACILE (2/6)",null,"3 h 45mn",225," "]
["Thur","Cernay",43," 3ÈME CIRCUIT HIVERNAL","nc",0,"FACILE (2/6)",null,"3 h 15 mn",195," "]
["Thur","Wattwiller",44," LE MOLKENRAIN EN HIVER",13.8,712,"ASSEZ DIFFICILE (4/6)",null,"5 h",300," "]
["Doller","Bourbach le Haut",45," ROSSBERG ET THANNER HUBEL, UN CIRCUIT HIVERNAL",14.2,752,"DIFFICILE (5/6)",null,"5 h",300," "]
["Doller","Masevaux",46," LACHTELWEIHER & LOCHBERG",16.5,589,"ASSEZ DIFFICILE (4/6)",null,"5 h",300," "]
["Thur","Mollau",47," LE CIRCUIT DES CABANES",16.100000000000001,622,"ASSEZ DIFFICILE (4/6)",null,"5 h 30 mn",330," "]
["Lauch","Lautenbach",48," VERS LE PETIT BALLON",13.5,737,"ASSEZ DIFFICILE (4/6)",null,"4 h 15 mn",255," "]
["Doller","Oberbruck",52," LAGERWALD, GRESSON ET BAERENBACH",13,536,"ASSEZ FACILE (2/6)",null,"5 h",300," "]
["Doller","Sentheim",53," LE COL DU SCHIRM, ENTRE FORÊTS ET ROCHERS ",13.6,424,"UN PEU DIFFICILE (3/6)",null,"4 h 45 mn",285," "]
["Thur","Cernay",54," COURTE EXTENSION ROMAINE",null,null,null,null,null,null," "]
["Thur","Cernay",54," BALADE VERS LE LUTZELHOF",10.5,0,"ASSEZ FACILE (2/6)",null,"2 h 30 mn",150," "]
["Thur","Vieux Thann",55," LE TOUR DU RANGEN",6,180,"FACILE (2/6)",null,"2 h",120," "]
["Thur","Kruth",56," LA CHAUME DES VINTERGÉS",12.4,672,"ASSEZ DIFFICILE (4/6)",null,"5 h",300," "]
["Doller","Sewen",57," LE GRAND LANGENBERG",12.5,660,"ASSEZ DIFFICILE (4/6)",null,"4 h 45 mn",285," "]
["Lauch","Schweighouse",58," GANGOLPHE ET BANNSTEIN",7,210,"FACILE (2/6)",null,"2 h 15 mn",135," "]
["Sundgau","Altenach",59," LE PLAT SUNDGAU",28.2,242,"UN PEU DIFFICILE (3/6)",null,"6 h 45mn",405," "]
["Thur","Oderen",60," MONTÉE AU TREH",11.3,686,"UN PEU DIFFICILE (3/6)",null,"4 h 15 mn",255," "]
["Lauch","Sengern",61," UN TOUR AU MARKSTEIN",13.3,572,"UN PEU DIFFICILE (3/6)",null,"4 h 30 mn",270," "]
["TDBelfort","Giromagny",62," LES BELLES FILLES ONT LEUR PLANCHE",14.7,733,"UN PEU DIFFICILE (3/6)",null,"5 h 30 mn",330," "]
["Sundgau","Ferrette",63," VERS LE JURA ALSACIEN",17.2,532,"UN PEU DIFFICILE (3/6)",null,"5 h 30 mn",330," "]
["Doller","Masevaux",64," FUCHSFELSEN ET ROSSBERG",17,848,"ASSEZ DIFFICILE (4/6)",null,"5 h 30 mn",330," "]
["Lauch","Murbach",65," GROTTES ET ROCHERS",12.8,645,"UN PEU DIFFICILE (3/6)",null,"4 h 30 mn",270," "]
["TDBelfort","Rougement",66," LA TOURNÉE DES ÉTANGS",19,457,"UN PEU DIFFICILE (3/6)",null,"5 h 30 mn",330," "]
["Thur","Cernay",67," LE TOUR DE LA MONTAGNE",25.3,636,"UN PEU DIFFICILE (3/6)",null,"6 h",360," "]
["Thur","Cernay",68," LE GRAND BALLON, VERSION 2017",35,1520,"DIFFICILE (5/6)",null,"9 h",540," "]
["Thur","Willer s/Thur",69," AGAPES AU BLAUFELS",10.1,482,"ASSEZ FACILE (2/6)",null,"3 h",180," "]
["Vallée Noble","Wintzfelden",70," FORÊTS ET VIGNES",20.399999999999999,673,"UN PEU DIFFICILE (3/6)",null,"6 h",360," "]
["Thur/Doller","Col du Hundsruck",71," UN DOUBLE HUIT",11,584,"UN PEU DIFFICILE (3/6)",null,"3 h 15 mn",195," "]
["Thur","Cernay",72," PROFITONS DE LA THUR",23.1,75,"TRÈS FACILE (1/6)",null,"4 h 35 mn",275," "]
["Doller","Sewen",73," GRABER 1 & 2, FENNEMATT ET HUHFELS",11.2,550,"UN PEU DIFFICILE (3/6)",null,"4 h 50 mn",290," "]
["Thur","Wildenstein",74," LA RANDONNÉE DES COLS",19.7,949,"ASSEZ DIFFICILE (4/6)",null,"7 h",420," "]
["Lauch","Rimbach près Guebwiller",75," GLASHUTTE ET SUDEL ",8.1999999999999993,396,"FACILE (2/6)",null,"3 h",180," "]
["Vallée Noble","Osenbach",76," RANDONNÉE FORESTIÈRE",25.1,859,"ASSEZ DIFFICILE (4/6)",null,"8 h",480," "]
["Kaysersberg","Orbey",77," PETIT CIRCUIT DES IMMERLINS",5.2,57,"TRÈS FACILE (1/6)",null,"2 h",120," "]
["Crêtes (Sud)","Grand Ballon",78,"GRAND BALLON → MARKSTEIN",14.7,391,"UN PEU DIFFICILE (3/6)",null,"3 h 30 mn",210," "]
["Vosges","Col de Bramont",79," UNE VIERGE, DES CORBEAUX",11.6,463,"UN PEU DIFFICILE (3/6)",null,"4 h",240," "]
["Thur","Bitschwiller les Thann",80," UN PETIT TOUR EN FORÊT",10,368,"ASSEZ FACILE (2/6)",null,"2 h 45 mn",165," "]
["Crêtes (Sud)","Markstein",81,"LE MARKSTEIN → LA SCHLUCHT",40.4,1000,"DIFFICILE (5/6)",null,"10 h",600," "]
["Thur","Uffholtz",82," DE VIGNES ET DE FORÊTS",9.8000000000000007,313,"FACILE (2/6)",null,"3 h",180," "]
["Thur","Willer s/Thur",83," EN PISTE AUTOUR DE LA THUR ",9,116,"ASSEZ FACILE (2/6)",null,"2 h 10 mn",130," "]
["Plaine","Wittelsheim",84," CIRCUIT DE DÉCOUVERTE",16.5,79,"FACILE (2/6)",null,"3 h 45 mn",225," "]
["Vallée Munster","Schlucht",85,"LA SCHLUCHT → LE BONHOMME",32.1,1008,"DIFFICILE (5/6)",null,"9 h 30 mn",570," "]
["Doller","Michelbach",86," PETITE PROMENADE",9.5,141,"TRÈS FACILE (1/6)",null,"2 h 50 mn",170," "]
["Thur/Doller","Roderen",87," LA TOURNÉE DES CHAPELLES",13,429,"FACILE (2/6)",null,"4 h 20 mn",260," "]
["Crêtes","Ballon d'Alsace",88," LES ROCHES DE MORTEVILLE",20,874,"ASSEZ DIFFICILE (4/6)",null,"7 h 20 mn",440," "]
["Thur","Cernay",89," DÉJEUNER EN PAIX AU BAECHERKOPFHISLÀ",22.3,916,"ASSEZ DIFFICILE (4/6)",null,"6 h 30 mn",390," "]
["Kaysersberg","Orbey",90," LA TOURNÉE DES LACS",14.3,620,"ASSEZ DIFFICILE (4/6)",null,"4 h 50 mn",290," "]
["Doller","Masevaux",91," AU SAEGENKOPF",8.8000000000000007,181,"FACILE (2/6)",null,"2 h 45 mn",165," "]
["Crêtes","Ballon d'Alsace",92," LE CIRCUIT DES CHALETS",16.8,795,"ASSEZ DIFFICILE (4/6)",null,"6 h 30 mn",390," "]
["Thur","Wattwiller",93," DÉJEUNER EN PAIX AU MOLKENRAIN",11.2,411,"FACILE (2/6)",null,"3 h 15 mn",195," "]
["Thur","Kruth",94," DU COL D’ODEREN AU GRAND VENTRON",13.8,487,"UN PEU DIFFICILE (3/6)",null,"4 h 05 mn",245," "]
["Doller","Bourbach le Bas",95," DEPUIS BOURBACH-LE-HAUT",8.3000000000000007,344,"FACILE (2/6)",null,"2 h 40 mn",160," "]
["Thur/Doller","Rammersmatt",96," DEPUIS RAMMERSMATT",9.9,463,"FACILE (2/6)",null,"3 h 15 mn",195," "]
["Vosges","Col de Bussang",97," DRUMONT, TÊTE DE FELLERING ET FAIGNE DES MINONS",14.6,749,"UN PEU DIFFICILE (3/6)",null,"4 h 45 mn",285," "]
["Thur","Steinbach",98," ERZENBACH ET AMSELKOPF",9.6,529,"ASSEZ FACILE (2/6)",null,"2 h 40 mn",160," "]
["Doller","Burnhaupt le Bas",99," PONT D’ASPACH ET GUEWENHEIM",7.4,59,"TRÈS FACILE (1/6)",null,"1 h 50 mn",110," "]
["Crêtes","Col de la Schlucht",100," SENTIER DES ROCHES ET HIRSCHSTEINE ",11.7,594,"DIFFICILE (5/6)",null,"5 h",300," "]
["Vosges","Fresse s/Moselle",101," CASCADE DE LONGELIGOUTTE ET MINES DE CUIVRE",14.1,468,"FACILE (2/6)",null,"4 h 30 mn",270," "]
["Sundgau","Illfurth",102," BRITZGYBERG, DE L’ÂGE DU FER À LA POUDRE DES CANONS",14.5,221,"FACILE (2/6)",null,"4 h 30 mn",270," "]
["Vallée Munster","Boenlesgrab",103,"SUR LES PENTES DU PETIT BALLON",9.9,474,"UN PEU DIFFICILE (3/6)",null,"3 h 40 mn",220," "]
["Lauch","Soultz",104," UN NEZ, DEUX ROCHERS, TROIS ERMITES",11,415,"FACILE (2/6)",null,"3 h",180," "]
["Lauch","Guebwiller",105," PETITE VIRÉE MYSTIQUE",3.2,180,"TRÈS FACILE (1/6)",null,"1 h 30 mn",90," "]
["Vosges","Bussang",106," DES ROCHES ET DES CHALETS",11.8,662,"UN PEU DIFFICILE (3/6)",null,"4 h 30 mn",270," "]
["Vallée Munster","Stosswihr",107," MONTER AUX HIRSCHSTEINE !",14.1,680,"ASSEZ DIFFICILE (4/6)",null,"4 h 40 mn",280," "]
["Vosges","Fresse s/Moselle",108," CROIX DE FRESSE ET CHAPELLE DES VÉS ",14.7,525,"UN PEU DIFFICILE (3/6)",null,"5 h 10 mn",310," "]
["Thur","Kruth",109," LE HAUT DE FELSACH",16,790,"ASSEZ DIFFICILE (4/6)",null,"4 h 30 mn",270," "]
["Thur","Cernay",110," ON PASSE EN-DESSOUS !",16,67,"TRÈS FACILE (1/6)",null,"3 h 40 mn",220," "]
["Sundgau","Gildwiller",111," MAGNIFIQUE SUNDGAU !",23.3,350,"FACILE (2/6)",null,"5 h 45 mn",345," "]
["Thur","Cernay",112," LA THUR, SAUVAGE ET CIVILISÉE",7.9,41,"TRÈS FACILE (1/6)",null,"1 h 50 mn",110," "]
["Thur","Steinbach",113," LA COTE 425 ET LES VIGNES",8.1999999999999993,164,"TRÈS FACILE (1/6)",null,"2 h",120," "]
["Thur/Doller","Col du Hundsruck",114," LA VIE EN ROUGE !",13.4,563,"UN PEU DIFFICILE (3/6)",null,"3 h 45 mn",225," "]
["Crêtes (Sud)","Firstacker",115," NEIGE ET BROUILLARD",9.9,485,"FACILE (2/6)",null,"2 h 50 mn",170," "]
["Doller","Bourbach le Haut",116," UN CORBEAU, UNE GROTTE ",12,639,"UN PEU DIFFICILE (3/6)",null,"3 h 30 mn",210," "]
["Plaine","Mulhouse",117," ENTRE CHAMPS ET FORÊT",11,190,"FACILE (2/6)",null,"2 h 30 mn",150," "]
["Crêtes (Sud)","Col Amic",118," UN PETIT CIRCUIT",7.9,318,"UN PEU DIFFICILE (3/6)",null,"3 h 15 mn",195," "]
["Thur","Moosch",119," AU BELACKER ET AU GSANG",18.100000000000001,687,"ASSEZ DIFFICILE (4/6)",null,"4 h 50 mn",290," "]
["Thur","Goldbach",120," LE TOUR DU MOLKENRAIN",15,557,"UN PEU DIFFICILE (3/6)",null,"4 h 30 mn",270," "]
["Plaine","Mulhouse",121," GARDER LA FORME !",14.2,270,"FACILE (2/6)",null,"3 h 45 mn",225," "]
["Thur","Cernay",122," UNE MARCHE SPORTIVE",23.3,213,"FACILE (2/6)",null,"5 h",300," "]
["Thur","Steinbach",123," PETIT CIRCUIT, PETITE NEIGE",9.1999999999999993,389,"ASSEZ FACILE (2/6)",null,"2 h 45 mn",165," "]
["Thur","Thann",124," VERS LES PYRAMIDES",9.1999999999999993,440,"UN PEU DIFFICILE (3/6)",null,"2 h 40 mn",160," "]
["Thur","Willer s/Thur",125," MONTER À ALTENBACH",7.8,311,"UN PEU DIFFICILE (3/6)",null,"2 h 45 mn",165," "]
["Thur","Oderen",126," AU GOMMKOPF",9.3000000000000007,417,"UN PEU DIFFICILE (3/6)",null,"3 h 45 mn",225," "]
["Doller","Masevaux",127," LE TOUR DU BAERENKOPF",13.9,665,"UN PEU DIFFICILE (3/6)",null,"4 h",240," "]
["Lauch","Rimbach près Guebwiller",128," HOLZWASEN ET FIRSTACKER",12.2,527,"FACILE (2/6)",null,"3 h 45 mn",225," "]
["Thur","Steinbach",129," LES INÉDITS",11,477,"ASSEZ FACILE (2/6)",null,"3 h 30 mn",210," "]
["Thur","Willer s/Thur",131," ABRIS BLAUFELS, VOGESAPFAD ET KUPPEN ",12.9,640,"UN PEU DIFFICILE (3/6)",null,"4 h 15 mn",255," "]
["Sundgau","Altkirch",132," LE ‘‘OFF’’ ET LE ‘‘IN’’",15.1,236,"FACILE (2/6)",null,"3 h 30 mn",210," "]
["Doller","Aspach le Haut",133," UN GRAND CLASSIQUE",14,216,"FACILE (2/6)",null,"3 h 15 mn",195," "]
["Lauch","Lautenbach-Linthal",135," LE PETIT BALLON EN HIVER",15.8,816,"DIFFICILE (5/6)",null,"5 h 30 mn",330," "]
["Thur","Steinbach",136," MOLKENRAIN ET FREUNDSTEIN, EN HIVER",18,770,"ASSEZ DIFFICILE (4/6)",null,"5 h 15 mn",315," "]
["Plaine","Reiningue",137," AUTOUR DE L’OELENBERG",13.5,77,"FACILE (2/6)",null,"3 h 30 mn",210," "]
["Vallée Noble","Orschwihr",138," LE VIGNOBLE, DU BOLLENBERG À ROUFFACH",11.6,236,"FACILE (2/6)",null,"2 h 50 mn",170," "]
["Doller","Oberbruck",139," LES MINES ET LES CRÊTES",17,707,"UN PEU DIFFICILE (3/6)",null,"5 h 15 mn",315," "]
["Thur","Uffholtz",140," VERS WATTWILLER ET BERRWILLER",12.7,104,"TRÈS FACILE (1/6)",null,"2 h 45 mn",165," "]
["Sundgau","Aspach",141," LE SUNDGAU, TOUJOURS PLUS À L’OUEST",22.9,287,"UN PEU DIFFICILE (3/6)",null,"5 h 20 mn",320," "]
["Plaine","Mulhouse",142," DES PONTS ET DES PASSERELLES",13.3,78,"FACILE (2/6)",null,"3 h",180," "]
["TDBelfort","Suarce",143," LES RESSOURCES DU TERRITOIRE",26.3,202,"UN PEU DIFFICILE (3/6)",null,"6 h 30 mn",390," "]
["Plaine","Ensisheim",144," SENTIER DE L’ILL ET CANAL VAUBAN",21.4,51,"UN PEU DIFFICILE (3/6)",null,"4 h 30 mn",270," "]
["Lauch","Rimbach près Guebwiller",145," AU GRAND BALLON",15.5,825,"ASSEZ DIFFICILE (4/6)",null,"5 h 30 mn",330," "]
["Sundgau","Hirsingue",146," LE SUNDGAU AGRICOLE",17,212,"FACILE (2/6)",null,"3 h 50 mn",230," "]
["TDBelfort","Etueffont",147," LE MOINE ET SES SEPT CHEMINS",15.6,752,"UN PEU DIFFICILE (3/6)",null,"4 h 50 mn",290," "]
["Thur","Geishouse",148," UNE HISTOIRE DE CAPITAINE",14.8,690,"UN PEU DIFFICILE (3/6)",null,"4 h 45 mn",285," "]
["Sundgau","Gildwiller",149," LA TOURNÉE DES ÉTANGS",9.1,124,"FACILE (2/6)",null,"2 h 30 mn",150," "]
["Vosges","Col de Bussang",150," LES CHALETS FORESTIERS",18.8,768,"ASSEZ DIFFICILE (4/6)",null,"5 h 30 mn",330," "]
["Sundgau","Durlingsdorf",151," MORIMONT ET ÉBOURBETTES",17.3,574,"UN PEU DIFFICILE (3/6)",null,"5 h",300," "]
["Thur","Cernay",152," LE GRAND BALLON, A/R, VERSION 2018",35.1,1561,"DIFFICILE (5/6)",null,"8 h",480," "]
["Doller","Bourbach le Haut",153," GRILLADES NOCTURNES AU HOCHBURG ",7.8,290,"FACILE (2/6)",null,"1 h 50 mn",110," "]
["TDBelfort","La Chapelle s/Rougemont",154," CCPSV, PRAIRIES, FORÊTS ET ÉTANGS",14.9,89,"FACILE (2/6)",null,"3 h 45 mn",225," "]
["Sundgau","Walheim",155," SEMI-MARATHON SUNDGAUVIEN",24.1,405,"UN PEU DIFFICILE (3/6)",null,"5 h 30 mn",330," "]
["Doller","Rimbach près Masevaux",156," LAC ET COL DES PERCHES",13.1,634,"UN PEU DIFFICILE (3/6)",null,"3 h 30 mn",210," "]
["Thur","Storckensohn",157," AU GAZON-VERT !",12.6,704,"UN PEU DIFFICILE (3/6)",null,"4 h",240," "]
["Thur","Uffholtz",158," SOULTZ ET SON MOULIN",23.5,254,"UN PEU DIFFICILE (3/6)",null,"6 h 15 mn",375," "]
["Crêtes","Ballon d'Alsace",159," VERS LA HAUTE BERS",20.5,834,"ASSEZ DIFFICILE (4/6)",null,"6 h 30 mn",390," "]
["TDBelfort","Rougegoutte",160," LE CHÂTEAU AUX SEPT CHEMINS",19.8,754,"ASSEZ DIFFICILE (4/6)",null,"6 h 15 mn",375," "]
["Thur","Cernay",161," STEINBACH, FAÇON MONTAGNES RUSSES",9.8000000000000007,335,"UN PEU DIFFICILE (3/6)",null,"2 h 45 mn",165," "]
["Vosges","Saint Maurice S/Moselle",162," LE PLEIN DE NOUVEAUTÉS !",21.9,895,"ASSEZ DIFFICILE (4/6)",null,"6 h 45 mn",405," "]
["Lauch","Soultz",163," CE CIRCUIT A DU NEZ… ",6.4,301,"TRÈS FACILE (1/6)",null,"2 h",120," "]
["TDBelfort","Lagrange",164," ENTRE FORÊTS ET CHAMPS",12.2,180,"FACILE (2/6)",null,"3 h 10 mn",190," "]
["Sundgau","Hagenthal le Bas",165," AU LANDSKRON !",19.7,543,"UN PEU DIFFICILE (3/6)",null,"5 h 15 mn",315," "]
["68 Nord","Thannenkirch",166," LE MUR PAÏEN ET SES ROCHERS",21.2,733,"ASSEZ DIFFICILE (4/6)",null,"7 h",420," "]
["Doller","Sewen",167," LE ‘‘PETIT’’ TOUR, DEPUIS SEWEN ",20.7,868,"ASSEZ DIFFICILE (4/6)",null,"6 h",300," "]
["Thur","St Amarin",168," MON CIRCUIT DES CHAPELLES",12.2,550,"UN PEU DIFFICILE (3/6)",null,"3 h 30 mn",210," "]
["Vallée Munster","Schlucht",169," DE LA SCHLUCHT AU LAC VERT",12.8,537,"ASSEZ DIFFICILE (4/6)",null,"4 h 50 mn",290," "]
["Doller","Sickert",170,"LE CHALET ROGER GAUGLER À SICKERT"," 7,5",338,"UN PEU DIFFICILE (3/6)",null,"2 h 30 mn",150," "]
["Doller","Lachtelweyer",171,"LACHTELWEIHER, LOCHBERG, FENNEMATT",8.8000000000000007,395,"FACILE (2/6)",null,"2 h 45 mn",165," "]
["Thur","Malmerspach",172," MONTÉE DEPUIS MALMERSPACH",18.899999999999999,785,"UN PEU DIFFICILE (3/6)",null,"5 h 30 mn",330," "]
["Thur","Mollau",173," MONTÉE DEPUIS MOLLAU",15.1,742,"UN PEU DIFFICILE (3/6)",null,"5 h",300," "]
["Thur","Bitschwiller les Thann",174,"BITSCHWILLER, RIVE GAUCHE",11.5,482,"UN PEU DIFFICILE (3/6)",null,"3 h 45 mn",225," "]
["Thur","Moosch",176," NOUVEAU CIRCUIT DU HAAG",15.8,898,"UN PEU DIFFICILE (3/6)",null,"5 h 30 mn",330," "]
["Crêtes","Le Bonhomme",177,"LE GRAND BRÉZOUARD",15.3,632,"ASSEZ DIFFICILE (4/6)",null,"5 h 30 mn",330," "]
["Thur","Thann",177,"ABRI ZUBER ET ABRI BAUMANN À THANN",7.6,398,"FACILE (2/6)",null,"2 h 30 mn",150," "]
["Lauch","Jungholtz",178," EN FORÊT RECULÉE DE SOULTZ",10.1,482,"UN PEU DIFFICILE (3/6)",null,"3 h 45 mn",225," "]
["Thur","St Amarin",179," AU MARKSTEIN !",15.3,738,"UN PEU DIFFICILE (3/6)",null,"5 h",300," "]
["Thur","St Amarin",180," LE CIRCUIT DU BELACKER",17,813,"UN PEU DIFFICILE (3/6)",null,"6 h",360," "]
["Doller","Sickert",181,"LE SATTELBODEN, DEPUIS SICKERT",12.6,602,"UN PEU DIFFICILE (3/6)",null,"4 h 30 mn",270," "]
["Sundgau","Flaxlanden",182," LE SUNDGAU AUTOMNAL",17.899999999999999,255,"FACILE (2/6)",null,"4 h 15 mn",255," "]
["Lauch","Guebwiller",183," TROTTBERG ET APPENTHAL, LES MYSTÈRES…",6.8,332,"FACILE (2/6)",null,"2 h 15 mn",135," "]
["Vallée Munster","Breitenbach",184," LE CIRCUIT DU PETIT BALLON",14.1,838,"ASSEZ DIFFICILE (4/6)",null,"4 h 15 mn",255," "]
["Thur","St Amarin",185," LE CIRCUIT DES 2 ‘‘M’’",12.9,502,"UN PEU DIFFICILE (3/6)",null,"4 h",240," "]
["Thur","Cernay",186," LE VALLON DE L’ERZENBACH",12.9,385,"UN PEU DIFFICILE (3/6)",null,"3 h 20 mn",200," "]
["Thur","Moosch",187," LE TOUR DU GRAND BALLON",19.100000000000001,1065,"ASSEZ DIFFICILE (4/6)",null,"5 h 30 mn",330," "]
["Sundgau","Dannemarie",188," LE SUNDGAU EN AUTOMNE",18.5,171,"UN PEU DIFFICILE (3/6)",null,"4 h 30 mn",270," "]
["Thur","Cernay",189," UN PETIT TOUR",12.3,59,"ASSEZ FACILE (2/6)",null,"2 h 30 mn",150," "]
["Vallée Munster","Wintzenheim",190," LES FORÊTS DES 5 CHÂTEAUX",16.5,668,"UN PEU DIFFICILE (3/6)",null,"5 h 15 mn",315," "]
["Doller","Oberbruck",191," LE CIRCUIT DES GRESSON",13.1,549,"UN PEU DIFFICILE (3/6)",null,"4 h",240," "]
["Thur","Vieux Thann",192," LE RANGEN, EN LONG ET EN LARGE",5.8,262,"FACILE (2/6)",null,"2 h",120," "]
["Thur","Cernay",193," CYCLABLES ET DE DÉFRUITEMENT, CE SONT LES PISTES",8.6,44,"TRÈS FACILE (1/6)",null,"1 h 50 mn",110," "]
["Thur","Thann",194," AUTOUR DU GRUMBACH",7.7,288,"FACILE (2/6)",null,"2 h 05 mn",125," "]
["Sundgau","Illfurth",195," LES COLLINES, L’ILL, LE CANAL",15,192,"UN PEU DIFFICILE (3/6)",null,"3 h 45 mn",225," "]
["Thur","Bitschwiller les Thann",196," LE TOUR DU THANNER HUBEL",14.2,764,"ASSEZ DIFFICILE (4/6)",null,"4 h 20 mn",260," "]
["Sundgau","Aspach",197," UN PETIT CIRCUIT",11.6,99,"FACILE (2/6)",null,"2 h 50 mn",170," "]
["Thur","Wattwiller",198," UN CIRCUIT VRAIMENT FACILE",4.9000000000000004,154,"TRÈS FACILE (1/6)",null,"1 h 30 mn",90," "]
["Plaine","Ruelisheim",199," LE CIRCUIT DES TUMULI",14.3,47,"FACILE (2/6)","x","4 h",240," "]
["Thur","Steinbach",200," CIRCUIT DE MISE EN FORME, VERSION COURTE",15.2,583,"UN PEU DIFFICILE (3/6)","x","3 h 30 mn",210," "]
["Thur","Steinbach",201," CIRCUIT DE MISE EN FORME, VERSION LONGUE",18.8,807,"ASSEZ DIFFICILE (4/6)","x","5 h 30 mn",330," "]
["Thur/Doller","Roderen",202," CHAMPS, FORÊTS ET ÉTANGS",12.2,242,"FACILE (2/6)","x","2 h 55 mn",175," "]
["Sundgau","Hirsingue",203," ÉTANGS, CASEMATES ET CHAPELLES ",14.5,210,"FACILE (2/6)","x","3 h 45 mn",225," "]
["Doller","Masevaux",204," LA FORÊT DE STOECKEN, SOUS LA NEIGE",6.7,244,"FACILE (2/6)",null,"2 h 15 mn",135," "]
["Sundgau","Montreux-château",205," DANS LE TERRITOIRE",15,129,"UN PEU DIFFICILE (3/6)","x","3 h 40 mn",220," "]
["Vosges","Col D'oderen",206," LE TOUR DU GRAND VENTRON, EN HIVER",16,585,"DIFFICILE (5/6)",null,"6 h",360," "]
["Sundgau","Luemschwiller",207," LE SUNDGAU, SA TERRE, SES ARBRES",13.1,244,"FACILE (2/6)","x","3 h 30 mn",210," "]
["Doller","Kirchberg",208," UN PETIT CIRCUIT DE DÉCOUVERTE ",7.2,237,"UN PEU DIFFICILE (3/6)",null,"2 h 30 mn",150," "]
["TDBelfort","Bethonvillers",209," LA FORÊT EST AUSSI BELLE EN HIVER !",17.600000000000001,182,"UN PEU DIFFICILE (3/6)","x","4 h 30 mn",270," "]
["Thur","Thann",210," LE PETIT CIRCUIT WALDKAPELLE",7.9,272,"UN PEU DIFFICILE (3/6)",null,"2 h 15 mn",135," "]
["Thur","Steinbach",211," MON CIRCUIT DU CAMP TURENNE ",9.3000000000000007,485,"UN PEU DIFFICILE (3/6)",null,"2 h 45 mn",165," "]
["Doller","Lauw",212," LE CIRCUIT DE L'OBERWALD",6.9,104,"FACILE (2/6)","x","2 h 10 mn",130," "]
["Vallée Noble","Pfaffenheim",213," ENTRE VIGNES ET SPIRITUALITÉ ",12.5,414,"ASSEZ FACILE (2/6)","x","4 h 15 mn",255," "]
["Sundgau","Altkirch",214," MARCHER SUR LA PISTE CYCLABLE ",14.8,52,"FACILE (2/6)","x","3 h",180," "]
["Sundgau","Illfurth",215," LE GR 531 NOUVEAU EST ARRIVÉ !",22.9,151,"UN PEU DIFFICILE (3/6)","x","5 h",300," "]
["Sundgau","Winkel",216," PIQUE-NIQUE AU COL DU NEUNEICH",15.4,564,"UN PEU DIFFICILE (3/6)","x","4 h 30 mn",270," "]
["Doller","Michelbach",217," LE TOUR DU LAC",5.5,43,"TRÈS FACILE (1/6)",null,"1 h 30 mn",90," "]
["Doller","Masevaux",218," ENCORE LE GR 531",8.4,225,"FACILE (2/6)","x","2 h 35 mn",155," "]
["Sundgau","Ferrette",219," TOUJOURS PLUS À L’EST",15,512,"UN PEU DIFFICILE (3/6)","x","4 h 30 mn",270," "]
["Thur/Doller","Col du Hundsruck",220," UN TOUR EN RAQUETTES ",9.8000000000000007,483,"UN PEU DIFFICILE (3/6)",null,"3 h 30 mn",210," "]
["Thur","Cernay",221," PETITE PROMENADE",8.6,38,"TRÈS FACILE (1/6)","x","2 h",120," "]
["Plaine","Rixheim",222," LE CIRCUIT DES 3 CHÂTEAUX !",19.2,46,"UN PEU DIFFICILE (3/6)","x","4 h 30 mn",270," "]
["Sundgau","Traubach le Bas",223," CROIX ET CRUCIFIX (CIRCUIT COURT)",13.7,113,"FACILE (2/6)","x","3 h",180," "]
["Sundgau","Traubach le Bas",223," CROIX ET CRUCIFIX (CIRCUIT LONG)",16.5,166,"ASSEZ FACILE (2/6)","x","3 h 45 mn",225," "]
["Sundgau","Gildwiller",224," MARCHER JUSQU’À BELLEMAGNY",14,239,"ASSEZ FACILE (2/6)","x","3 h 20 mn",200," "]
["Sundgau","Gildwiller",225," ENCORE LE GR 531 !",5.0999999999999996,92,"TRÈS FACILE (1/6)","x","1 h 15 mn",75," "]
["Plaine","Ungersheim",226," LA TOURNÉE DES PARCS",15.1,42,"ASSEZ FACILE (2/6)","x","4 h",240," "]
["Doller","Masevaux",227," MONTER AU VOGELSTEIN !",18.100000000000001,905,"ASSEZ DIFFICILE (4/6)",null,"5 h 30 mn",330," "]
["Doller","Dolleren",228," À LA FENNEMATT",13.5,565,"UN PEU DIFFICILE (3/6)",null,"4 h 30 mn",270," "]
["Thur","St Amarin",229," COL DE RIMBACH ET BELACKER",18.5,682,"UN PEU DIFFICILE (3/6)",null,"4 h 20 mn",260," "]
["Plaine","Merxheim",230," PLAINE, MA PLAINE",16.3,56,"ASSEZ FACILE (2/6)","x","3 h 40 mn",220," "]
["Plaine","Ensisheim",231," ENTRE PLAINE ET FORÊT",16.899999999999999,32,"ASSEZ FACILE (2/6)","x","3 h 45 mn",225," "]
["Doller","Lac d'Alfeld",232," OÙ SONT LES FERMES ? ",6.9,480,"UN PEU DIFFICILE (3/6)",null,"3 h",180," "]
["Thur","Uffholtz",233," HERRENFLUH ET SIEHLBAECHLE",8.9,400,"UN PEU DIFFICILE (3/6)",null,"3 h 50 mn",230," "]
["Sundgau","Kiffis",234," AUTOUR DU GLASERBERG",11.7,355,"UN PEU DIFFICILE (3/6)",null,"4 h 45 mn",285," "]
["Vosges","St Maurice sur Moselle",235," LA GOUTTE ET LE BALLON",14.9,660,"UN PEU DIFFICILE (3/6)",null,"4 h 30 mn",270," "]
["Sundgau","Bisel",236," AUTOUR DU GR 532",23.1,214,"UN PEU DIFFICILE (3/6)","x","5 h 30 mn",330," "]
["Thur","Fellering",237," NOUS MONTONS AU DRUMONT ! ",16.2,798,"UN PEU DIFFICILE (3/6)",null,"5 h",300," "]
["Lauch","Lautenbach-Zell",238," CHEMINS ET SENTIERS VERS LE GRAND BALLON",20.5,1006,"ASSEZ DIFFICILE (4/6)",null,"5 h 45 mn",345," "]
["Vallée Noble","Orschwihr",239,"ORSCHWIHR :DEUX CHÂTEAUX ET DEUX CHAPELLES",10.199999999999999,261,"FACILE (2/6)","x","3 h",180," "]
["Crêtes (Sud)","Hartmannswiller",240," MOLKENRAIN ET FREUNDSTEIN",7.1,301,"UN PEU DIFFICILE (3/6)",null,"1 h 55 mn",115," "]
["Thur","Wattwiller",241,"LE GRAND BALLON, OU LA QUÊTE DU GRAAL",26.9,1439,"DIFFICILE (5/6)",null,"7 h 15 mn",435," "]
["Doller","Schweighouse",242,"SCHWEIGHOUSE-THANN ",9.1999999999999993,54,"FACILE (2/6)","x","2 h",120," "]
["TDBelfort","La Chapelle s/Rougemont",243,"LACHAPELLE-SOUS-ROUGEMONT",8.6,58,"FACILE (2/6)","x","2 h 15 mn",135," "]
["Thur/Doller","Roderen",244," UN TOUT PETIT CIRCUIT FACILE",5.4,154,"FACILE (2/6)","x","1 h 30 mn",90," "]
["Vallée Munster","Hohneck",245,"KASTELBERG ET ALTENWEIHER",11.3,475,"UN PEU DIFFICILE (3/6)",null,"4 h",240," "]
["Crêtes (Sud)","Molkenrain",246,"PIQUE-NIQUE CHEZ LES FREUNDSTEIN",9.1,400,"UN PEU DIFFICILE (3/6)",null,"4 h",240," "]
["Doller","Masevaux",247,"LACHTELWEIHER ET BAERENKOPF",20.399999999999999,795,"UN PEU DIFFICILE (3/6)",null,"5 h 35 mn",335," "]
["Crêtes (Sud)","Ballon d'Alsace",248,"LE GR5, JUSQU’AU COL DES PERCHES",20,670,"ASSEZ DIFFICILE (4/6)",null,"5 h 40 mn",340," "]
["Crêtes (Sud)","Hirtzenstein",249,"MONTÉE AU HARTMANNSWILLERKOPF",7.4,451,"UN PEU DIFFICILE (3/6)",null,"2 h 35 mn",155," "]
["TDBelfort","Giromagny",250,"LE TOUR DU BALLON D’ALSACE",25.8,932,"ASSEZ DIFFICILE (4/6)",null,"6 h 45 mn",405," "]
["Thur","Steinbach",251," L’ANNEAU BLEU DU VALLON",6.2,233,"FACILE (2/6)",null,"2 h 05 mn",125," "]
["Thur","Thann",252," MATINALE À LA ROCHE ALBERT",7.6,315,"ASSEZ FACILE (2/6)",null,"2 h 15 mn",135," "]
["Vosges","Bussang",253," LA CHAUME DES NEUFS BOIS",13.1,430,"UN PEU DIFFICILE (3/6)",null,"3 h 45 mn",225," "]
["Thur","Thann",254," PETIT CIRCUIT FORESTIER",5.8,223,"FACILE (2/6)","x","1 h 35 mn",95," "]
["Thur","Mollau",255," PAR LES CHEMINS, EN FORÊT DE MOLLAU",14.8,449,"UN PEU DIFFICILE (3/6)","x","3 h 45 mn",225," "]
["Doller","Rimbach près Masevaux",256," LA FORÊT DES VOLCANS",12.8,527,"UN PEU DIFFICILE (3/6)",null,"4 h",240," "]
["Vallée Munster","Petit Ballon",257," LE GRAND TOUR DU PETIT BALLON",12.5,588,"UN PEU DIFFICILE (3/6)",null,"4 h",240," "]
["Thur","Wildenstein",258," CHERCHONS LA FRAÎCHEUR ",7.8,317,"ASSEZ FACILE (2/6)",null,"2 h 30 mn",150," "]
["Thur","Thann",259," PETIT-DÉJEUNER AU CHÊNE WOTAN",11.4,541,"UN PEU DIFFICILE (3/6)",null,"3 h 15 mn",195," "]
["Thur","Thann",260," LE CIRCUIT DU HUNDSRUCK",12.9,497,"UN PEU DIFFICILE (3/6)","x","3 h 45 mn",225," "]
["Sundgau","Altkirch",261," LE SUNDGAU, SANS LES COLLINES",14.5,138,"ASSEZ FACILE (2/6)","x","3 h 10 mn",190," "]
["Plaine","Mulhouse",262," LE SUNDGAU, AUTOUR DU GR 532",14.3,271,"ASSEZ FACILE (2/6)","x","3 h 15 mn",195," "]
["Sundgau","Waltenheim",263," LES GRANDES DÉCOUVERTES",18.100000000000001,208,"ASSEZ FACILE (2/6)","x","4 h 15 mn",255," "]
["Vallée Munster","Gaschney",264," LE TOUR DU HOHNECK, LE PETIT ET LE GRAND",8.6,505,"UN PEU DIFFICILE (3/6)",null,"3 h",180," "]
["Vallée Munster","Metzeral",265,"FISCHBOËDLE ET SCHIESSROTHRIED",15.5,592,"ASSEZ DIFFICILE (4/6)",null,"4 h 15 mn",255," "]
["TDBelfort","Grosne",266," UN GRAND CIRCUIT POUR LES GRANDS CHENES",19.2,157,"UN PEU DIFFICILE (3/6)","x","4 h 15 mn",255," "]
["Vallée Munster","Sondernach",267," LE GRAND TOUR DU HILSENFIRST",18.7,832,"ASSEZ DIFFICILE (4/6)",null,"6 h 15 mn",375," "]
["Lauch","Wuenheim",268," AUTOUR DE LA CROIX ZIMMERMANN",9.5,424,"UN PEU DIFFICILE (3/6)",null,"3 h 15 mn",195," "]
["Vallée Munster","Parking du Haut Chitelet",269," UNE NOUVELLE APPROCHE DU SENTIER DES ROCHES",6.8,256,"ASSEZ DIFFICILE (4/6)",null,"2 h 30 mn",150," "]
["Doller","Mortzwiller",270," LE VALLON DU SOULTZBACH",7.1,92,"ASSEZ FACILE (2/6)","x","2 h",120," "]
["Vallée Munster","Mittlach",271," HERRENBERG, RAINKOPF ET ALTENWEIER",16.899999999999999,873,"ASSEZ DIFFICILE (4/6)",null,"5 h 30 mn",330," "]
["Vallée Kaysersberg","Kaysersberg",272," URSPRUNG, ROCHE DU TETRAS ET ST ALEXIS",17,275,"UN PEU DIFFICILE (3/6)",null,"5 h 30 mn",330," "]
["Sundgau","Wolschwiller",273," COMME UN PARFUM DE LSD",13.6,440,"UN PEU DIFFICILE (3/6)",null,"4 h 30 mn",270," "]
["Vallée Munster","Katzenthal",274," NOUS MONTONS AU GALTZ",10.6,501,"UN PEU DIFFICILE (3/6)",null,"3 h",180," "]
["Kaysersberg","Lapoutroie",275," TOUR  DU FAUDE, TETE DES FAUX",17.5,931,"ASSEZ DIFFICILE (4/6)",null,"5 h 45 mn",345," "]
["Kaysersberg","Orbey",276," DES PIERRES, DES PINS ET DES DOMINICAINES",15.2,575,"UN PEU DIFFICILE (3/6)",null,"4 h 30 mn",270," "]
["Kaysersberg","Orbey",277," LAC BLANC, LAC NOIR",10,404,"UN PEU DIFFICILE (3/6)",null,"3 h 15 mn",195," "]
["Vallée Munster","Col du Wettstein",278," LE TOUR DU LAC DU FORLET",10.5,489,"UN PEU DIFFICILE (3/6)",null,"3 h 30 mn",210," "]
["Kaysersberg","Aubure",279," LES 3 BANS ET LES JOLIES COLONIES DE VACANCES",12.8,462,"UN PEU DIFFICILE (3/6)","x","3 h 30 mn",210," "]
["Kaysersberg","Orbey",280,"LE GRAND TOUR DU NOIRMONT",16.2,499,"UN PEU DIFFICILE (3/6)",null,"3 h 30 mn",255," "]
["Crêtes","Le Bonhomme",281,"LA TOURNÉE DES COLS",13.4,510,"UN PEU DIFFICILE (3/6)",null,"4 h 30 mn",270," "]
["Lauch","Lautenbach-Zell",282,"LAC DU BALLON ET HUSENBOURG",11.5,498,"UN PEU DIFFICILE (3/6)",null,"3 h 30 mn",210," "]
["Crêtes","Hohneck",283,"LES LACS VOSGIENS",17.100000000000001,732,"ASSEZ DIFFICILE (4/6)",null,"5 h",300," "]
["Sundgau","Illfurth",284,"LE CIRCUIT DE HEIDWILLER",12.2,158,"ASSEZ FACILE (2/6)","x","2 h 45 mn",165," "]
["TDBelfort","Lepuix",285,"ÉTANG DES BELLES FILLES ET COL DE LA ROUGERIE",12.4,660,"UN PEU DIFFICILE (3/6)",null,"4 h 30 mn",270," "]
["TDBelfort","Plancher Les Mines",286,"L’ENDROIT DE ST-ANTOINE ",15.5,711,"UN PEU DIFFICILE (3/6)",null,"4 h 45 mn",285," "]
["Thur","Cernay",287,"STAFFELFELDEN PAR LA PISTE CYCLABLE ",18.399999999999999,64,"ASSEZ FACILE (2/6)","x","3 h 30 mn",210," "]
["Thur","Bitschwiller les Thann",288,"PETIT CIRCUIT DU CAMP DES PYRAMIDES",9.1,430,"UN PEU DIFFICILE (3/6)",null,"2 h 45 mn",165," "]
["Lauch","Guebwiller",289,"HUGSTEIN ET PETERNIT",8.5,356,"UN PEU DIFFICILE (3/6)",null,"2 h 45 mn",165," "]
["Sundgau","Illfurth",290,"LE GRAND TOUR DU GRAND CANON",15.9,235,"UN PEU DIFFICILE (3/6)","x","3 h 50 mn",230," "]
["TDBelfort","Lepuix Neuf",291," LONGER LA FRONTIÈRE SUISSE",22.4,396,"UN PEU DIFFICILE (3/6)",null,"5 h 45 mn",345," "]
["Sundgau","Michelbach le Haut",292,"DU CÔTÉ DE L’AÉROPORT",17.2,178,"UN PEU DIFFICILE (3/6)","x","5 h 45 mn",345," "]
["Vosges","Col de Bussang",293,"DES ALLEMANDS À ST-HUBERT",7.8,301,"UN PEU DIFFICILE (3/6)",null,"3 h",180," "]
["Thur","Cernay",294,"ERBENHEIM, ÇA VOUS PARLE ?",10.7,35,"ASSEZ FACILE (2/6)","x","3 h 40 mn",220," "]
["Doller","Roderen",295,"LE TOUR DU NEUBERG ",8.4,177,"ASSEZ FACILE (2/6)","x","2 h",120," "]
["Lauch","Col du Boenlesgrab",296,"LE PETIT TOUR DU PETIT BALLON",7.4,395,"UN PEU DIFFICILE (3/6)",null,"2 h 15 mn",135," "]
["Thur","Mollau",297,"ESSENBACHKOPF ET RIMBACHKOPF",15.2,750,"ASSEZ DIFFICILE (4/6)",null,"4 h 30 mn",270," "]
["Thur","Cernay",298,"AU SUD, AUTOUR DE LA D 83",9,23,"ASSEZ FACILE (2/6)","x","2 h",120," "]
["Thur","Schweighouse",299,"LE BAERENBACH, SANS LES OURS",7.8,34,"ASSEZ FACILE (2/6)","x","1 h 45 mn",105," "]
["Plaine","Morschwiller le Bas",300,"UN GRAND CIRCUIT",21,111,"UN PEU DIFFICILE (3/6)","x","4 h 45 mn",285," "]
["Doller","Wegscheid",301,"LE NOUVEAU BELVÉDÈRE DU FUCHSFELSEN",14,671,"ASSEZ DIFFICILE (4/6)",null,"4 h 45 mn",285," "]
["Thur","Cernay",302,"UN NOUVEAU PETIT CIRCUIT",8.6999999999999993,30,"ASSEZ FACILE (2/6)","x","1 h 45 mn",105," "]
["Thur","Thann",303,"PETIT GALOP D’ESSAI",5.9,262,"ASSEZ FACILE (2/6)","x","1 h 30 mn",90," "]
["Thur","Wildenstein",304,"RETOUR AU LAC DE KRUTH-WILDENSTEIN",11.4,412,"UN PEU DIFFICILE (3/6)",null,"3 h 30 mn",210," "]
["Thur","Thann",305,"GRILLADES NOCTURNES À L’ABRI BAUMANN ",8.9,384,"UN PEU DIFFICILE (3/6)",null,"2 h 30 mn",150," "]
["Thur","Urbès",306,"LE CIRCUIT DU ROUGE GAZON",11.3,759,"ASSEZ DIFFICILE (4/6)",null,"4 h 15 mn",255," "]
["Plaine","Rixheim",307,"LE GRAND TOUR DU PETIT AÉRODROME ",11.7,98,"ASSEZ FACILE (2/6)","x","3 h",180," "]
["Vosges","Col de Bussang",308,"UN NOUVEAU CIRCUIT DU DRUMONT",11.8,595,"UN PEU DIFFICILE (3/6)",null,"3 h 45 mn",225," "]
["Thur","Kruth",309,"LE TREH, PAR L’ABRI DIEMUNSCH ",13.6,630,"UN PEU DIFFICILE (3/6)",null,"4 h",240," "]
["Sundgau","Bruebach",310,"LE SUNDGAU, COLLINES, CHAMPS ET FORÊTS",14.1,265,"ASSEZ FACILE (2/6)","x","3 h 15 mn",195," "]
["Thur","Moosch",311,"LE CIRCUIT DE L’ABRI DU FAUCON CRÉCERELLE",15.3,757,"UN PEU DIFFICILE (3/6)",null,"4 h 25 mn",265," "]
["Vallée Noble","Orschwihr",312,"LE VIGNOBLE EN HIVER, JUSQU’AU SCHAUENBERG",21.6,499,"UN PEU DIFFICILE (3/6)",null,"5 h 20 mn",320," "]
["Doller","Col Du Schirm",313,"LE TOUR DU ROSSBERG ",13.7,587,"UN PEU DIFFICILE (3/6)",null,"4 h 15 mn",255," "]
["Lauch","Soultz",314,"LE CIRCUIT DE TOUTES LES DÉCOUVERTES",14.6,427,"UN PEU DIFFICILE (3/6)",null,"4 h 15 mn",255," "]
["Sundgau","Illfurth",315,"LES COLLINES DES CINQ COMMUNES",19.600000000000001,463,"UN PEU DIFFICILE (3/6)","x","5 h 15 mn",315," "]
["Lauch","Lac de la Lauch",316,"LE CIRCUIT DES COLS",13.9,695,"ASSEZ DIFFICILE (4/6)",null,"5 h 30 mn",330," "]
["Thur","Wattwiller",317,"HWK FLANC EST, COURBES 0 ET 1",9.1999999999999993,303,"ASSEZ FACILE (2/6)","x","2 h 15 mn",135," "]
["Plaine","Reiningue",318,"DU CENTRE PÉNITENTIAIRE À L’ABBAYE !",14.3,49,"ASSEZ FACILE (2/6)","x","3 h 10 mn",190," "]
["Plaine","Aspach-Michelbach",319,"PAYSAGES AGRICOLES ET FORESTIERS",13.6,218,"ASSEZ FACILE (2/6)","x","2 h 45 mn",165," "]
["Doller","Rimbach près Masevaux",320,"NEUWEIHER, BERS ET PERCHES ",11.5,623,"ASSEZ DIFFICILE (4/6)",null,"4 h 15 mn",255," "]
["Thur","Willer s/Thur",321,"L’ARBRE TOTEM DU SATTEL",12.9,630,"UN PEU DIFFICILE (3/6)","x","3 h 45 mn",225," "]
["Sundgau","Dannemarie",322,"CASSE- CROÛTE À NOTRE-DAME DE BELLEFONTAINE",19.2,142,"UN PEU DIFFICILE (3/6)","x","4 h 30 mn",270," "]
["Sundgau","Altenach",323,"LE GRAND TOUR DES ÉTANGS DU SUNDGAU",27.8,312,"UN PEU DIFFICILE (3/6)","x","5 h 30 mn",330," "]
["Thur","Steinbach",324,"LA REPRISE EN DOUCEUR",11.5,468,"UN PEU DIFFICILE (3/6)",null,"3 h",180," "]
["Thur","Wattwiller",325,"LE GRAND HUIT DU MOLKENRAIN",16.8,937,"ASSEZ DIFFICILE (4/6)",null,"4 h 45 mn",285," "]
["Thur","Husseren",326,"LE PETIT CIRCUIT DU CHAUVELIN",6,267,"UN PEU DIFFICILE (3/6)",null,"2 h 10 mn",130," "]
["Thur","Kruth",327,"L’APPEL DES CRÊTES",15.8,746,"ASSEZ DIFFICILE (4/6)",null,"4 h 20 mn",260," "]
["Crêtes","Route des Crêtes",328,"SENTIER DES ROCHES",12.5,476,"ASSEZ DIFFICILE (4/6)",null,"4 h",240," "]
["Thur","Wattwiller",329,"LA CASCADE DU SIEHLBAECHLE",4.7,225,"ASSEZ FACILE (2/6)","x","1 h 30 mn",90," "]
["TDBelfort","Valdoie",330,"POUR FAIRE DES KILOMÈTRES… ",18.899999999999999,127,"UN PEU DIFFICILE (3/6)","x","4 h 30 mn",270," "]
["Thur/Doller","Col du Hundsruck",331,"ROSSBERG, VOGELSTEIN, FUCHSFELSEN",15.2,568,"UN PEU DIFFICILE (3/6)",null,"4 h 30 mn",270," "]
["Thur","Thann",332,"UN PETIT TOUR DU RANGEN",5.0999999999999996,162,"ASSEZ FACILE (2/6)",null,"1 h 30 mn",90," "]
["Vallée Munster","Orbey",333,"DU DOMAINE DES LACS AU CREUX D’ARGENT",15.9,658,"ASSEZ DIFFICILE (4/6)",null,"5 h",300," "]
["Thur","Thann",334,"PETIT TOUR SUR LA COLLINE DU STAUFEN",4.3,177,"ASSEZ FACILE (2/6)",null,"1 h 15 mn",75," "]
["Thur","Cernay",335,"D’UNE PISTE CYCLABLE À L’AUTRE",16.2,71,"ASSEZ FACILE (2/6)","x","3 h 05 mn",185," "]
["Sundgau","Ferrette",336,"VILLAGES ET FORÊTS DU SUNDGAU",22.4,713,"ASSEZ DIFFICILE (4/6)",null,"6 h 15 mn",375," "]
["TDBelfort","Rougemont Le Château",337,"LE TERRITOIRE DU BAERENKOPF",19.600000000000001,717,"ASSEZ DIFFICILE (4/6)",null,"6 h",360," "]
["Doller","Aspach le Bas",338,"LE MICHELBACH, AUTREMENT",7.9,104,"ASSEZ FACILE (2/6)","x","1 h 50 mn",115," "]
["Thur","Cernay",339,"CERNAY-UFFHOLTZ-WATTWILLER",11.4,152,"ASSEZ FACILE (2/6)","x","2 h 30 mn",150," "]
["Doller","Sewen",340,"LE TOUR DU BALLON D’ALSACE",18.600000000000001,863,"ASSEZ DIFFICILE (4/6)",null,"5 h 30 mn",330," "]
["Thur","Willer s/Thur",341,"OSTEIN & OSTEIN",14.6,539,"UN PEU DIFFICILE (3/6)",null,"3 h 40 mn",220," "]
["Thur","Fellering",342,"LE TREH ET QUELQUES ABRIS",15.5,795,"ASSEZ DIFFICILE (4/6)",null,"5 h",300," "]
["Thur","Vieux Thann",343,"HAÏDA A RETROUVÉ SA PLACE",5.8,246,"ASSEZ FACILE (2/6)","x","1 h 40 mn",100," "]
["Vallée Munster","Gaschney",344,"SUR LE GR 531, MAIS PAS QUE…",18.7,620,"ASSEZ DIFFICILE (4/6)",null,"5 h 15 mn",315," "]
["Doller","Dolleren",345,"SCHLUMPF ET GRABER",12.1,562,"UN PEU DIFFICILE (3/6)",null,"4 h",240," "]
["Thur","Jungholtz",346,"ALLER-RETOUR AU GRAND BALLON, VERSION 2020",20,1099,"ASSEZ DIFFICILE (4/6)",null,"5 h 30 mn",330," "]
["Thur","Cernay",347,"MON CIRCUIT TURENNE ET HERRENFLUH",17.100000000000001,641,"UN PEU DIFFICILE (3/6)",null,"4 h 50 mn",290," "]
["Lauch","Guebwiller",348,"LE VIGNOBLE JUSQU’À ORSCHWIHR",12,85,"ASSEZ FACILE (2/6)","x","3 h",180," "]
["Thur","Kruth-Wildenstein",349,"UN CIRCUIT EN 2020",12.5,534,"UN PEU DIFFICILE (3/6)",null,"3 h 30 mn",210," "]
["Crêtes","Col de la Schlucht",350,"LES SENTIERS DES ROCHERS",22.9,783,"DIFFICILE (5/6)",null,"7 h",420," "]
["Vosges","Col du Page",351,"AUTOUR DU FRÈRE JOSEPH",18.100000000000001,455,"UN PEU DIFFICILE (3/6)","x","5 h",300," "]
["Thur","Col du Herrenfluh",352,"LE TOUR DU MOLKENRAIN",9.1999999999999993,387,"ASSEZ FACILE (2/6)","x","3 h",180," "]
["Vosges","Travexin",353,"LA FORÊT, ENCORE LA FORÊT ! ",20.7,707,"UN PEU DIFFICILE (3/6)","x","5 h 45 mn",345," "]
["Sundgau","Hagenthal le Bas",354,"LE SUNDGAU, TOUT PRÈS DE LA SUISSE",21.3,321,"UN PEU DIFFICILE (3/6)","x","5 h 30 mn",330," "]
["Thur","Freundstein",355,"LA FACE CACHÉE DU MOLKENRAIN",6.5,355,"ASSEZ FACILE (2/6)",null,"2 h 15 mn",135," "]
["Thur","Uffholtz",356,"VIGNES ET COLLINES SOUS-VOSGIENNES ",9,200,"ASSEZ FACILE (2/6)","x","2 h",120," "]
["Vallée Kaysersberg","Kaysersberg",357,"WEIBEL, CRAS ET WOLFGANG",18.399999999999999,740,"UN PEU DIFFICILE (3/6)",null,"5 h 45 mn",345," "]
["Thur","Wattwiller",358,"AU HARTMANNSWILLERKOPF",11.4,577,"UN PEU DIFFICILE (3/6)",null,"4 h",240," "]
["Thur","Cernay",359,"COMMENT ÇA VA, LA THUR?",12,87,"ASSEZ FACILE (2/6)","x","3 h",180," "]
["Vosges","Col de Bramont",360,"MACHAIS, LA LANDE ET BLANCHEMER",18.7,778,"ASSEZ DIFFICILE (4/6)",null,"5 h 30 mn",330," "]
["Crêtes","Col de la Schlucht",361,"LAC VERT ET HIRSCHSTEINE",12.7,510,"UN PEU DIFFICILE (3/6)",null,"4 h",240," "]
["Doller","Lachtelweyer",362,"FENNEMATT ET BAERENLOCH ",11.5,400,"UN PEU DIFFICILE (3/6)",null,"3 h 45 mn",225," "]
["Crêtes (Sud)","Hirtzenstein",363,"DANS LES LIGNES FRANÇAISES",8.6,513,"UN PEU DIFFICILE (3/6)",null,"4 h",240," "]
["Lauch","Boenlesgrab",364,"LE TOUR DU PETIT BALLON",10.6,465,"UN PEU DIFFICILE (3/6)",null,"3 h 30 mn",210," "]
["Doller","Lac de Michelbach",365,"LE CIRCUIT DE LA DOLLER",12.4,102,"ASSEZ FACILE (2/6)",null,"3 h",180," "]
["Thur","Cernay",366,"LES CHEMINS DE DÉFRUITEMENT",16.7,61,"ASSEZ FACILE (2/6)","x","3 h 30 mn",210," "]
["Sundgau","Carspach",367,"AU CŒUR DU SUNDGAU",19.100000000000001,280,"UN PEU DIFFICILE (3/6)","x","4 h 45 mn",285," "]
["Sundgau","Feldbach",368,"LE SUNDGAU AGRICOLE ET RELIGIEUX",19.8,279,"UN PEU DIFFICILE (3/6)","x","5 h 15 mn",315," "]
["Sundgau","Wahlbach",369,"LE SUNDGAU ET SES VILLAGES",21.8,254,"UN PEU DIFFICILE (3/6)","x","4 h 30 mn",270," "]
["Thur","Geishouse",370,"LE COL DU HAAG, C’EST FACILE ! ",11.7,580,"UN PEU DIFFICILE (3/6)",null,"3 h 15 mn",195," "]
["Vosges","Col de Bussang",371,"LE DRUMONT",11.9,597,"UN PEU DIFFICILE (3/6)",null,"4 h",240," "]
["TDBelfort","Rougemont Le Château",372,"TROU DU LOUP ET TÊTE LE MOINE",16,600,"UN PEU DIFFICILE (3/6)",null,"4 h 30 mn",270," "]
["Thur","Thann",373,"LE CIRCUIT DE LA RIVE GAUCHE EN 3 HEURES",10.4,454,"UN PEU DIFFICILE (3/6)",null,"2 h 45 mn",165," "]
["Thur","Cernay",374,"MON PETIT CIRCUIT VERS VIEUX-THANN",9.1999999999999993,40,"ASSEZ FACILE (2/6)","x","2 h 10 mn",130," "]
["Thur/Doller","Col du Hundsruck",375,"LE PETIT TOUR DU THANNER-HUBEL",7.3,405,"ASSEZ DIFFICILE (4/6)",null,"2 h 15 mn",135," "]
["Thur","Steinbach",376,"CASCADE, PASTETENPLATZ ET HIRNELESTEIN",8.6,387,"UN PEU DIFFICILE (3/6)",null,"2 h 20 mn",140," "]
["Thur","Cernay",377,"UN PETIT TOUR JUSQU’À VIEUX-THANN",12,97,"ASSEZ FACILE (2/6)","x","2 h 30 mn",150," "]
["Lauch","Wintzfelden",378,"PLAINE DE ROUFFACH ET HIRTZENSTEIN ",13.1,784,"UN PEU DIFFICILE (3/6)","x","3 h 55 mn",235," "]
["Thur","Cernay",379,"PETIT CIRCUIT VERS WITTELSHEIM",12.2,52,"ASSEZ FACILE (2/6)","x","2 h 15 mn",135," "]
["Lauch","Schweighouse",380,"LE DIABLE ET SES CHAPELLES",11.7,378,"UN PEU DIFFICILE (3/6)","x","3 h 30 mn",210," "]
["Sundgau","Carspach",381,"KILIANSTOLLEN ET D 680",11.2,127,"ASSEZ FACILE (2/6)","x","2 h 30 mn",150," "]
["Crêtes (Sud)","Firstacker",382,"EN RAQUETTES À NEIGE, AUTOUR DU GRAND BALLON",9.6,463,"ASSEZ DIFFICILE (4/6)",null,"4 h",240," "]
["Thur","Cernay",383,"AVEC LES RAQUETTES, DANS LA FORÊT DE STEINBACH",8.6999999999999993,233,"UN PEU DIFFICILE (3/6)",null,"2 h 45 mn",165," "]
["Doller","Rimbach",384,"AU LAC DES PERCHES, RAQUETTES AUX PIEDS",7.7,434,"ASSEZ DIFFICILE (4/6)",null,"3 h 30 mn",210," "]
["Sundgau","Winkel",385,"AU NEUNEICH, DANS LA NEIGE",14.1,364,"UN PEU DIFFICILE (3/6)",null,"3 h 30 mn",210," "]
["Vallée Noble","Orschwihr",386,"UN CHEMIN DE CROIX AU BOLLENBERG !",8.1999999999999993,204,"ASSEZ FACILE (2/6)","x","2 h 30 mn",150," "]
["Thur","Wattwiller",387,"BOIRE SON CAFÉ À LA CANTINE ZELLER",7.9,341,"UN PEU DIFFICILE (3/6)",null,"2 h 30 mn",150," "]
["Lauch","Guebwiller",388,"COL DU DREIBANNSTEIN ET CARRIÈRES DE BERGHOLTZ",8.8000000000000007,333,"UN PEU DIFFICILE (3/6)",null,"3 h",180," "]
["Thur","Moosch",389,"DÉJEUNER AU FAUCON CRÉCERELLE",11.5,617,"ASSEZ DIFFICILE (4/6)",null,"3 h 30 mn",210," "]
["Thur/Doller","Rammersmatt",390,"LE PETIT CIRCUIT DES CHAPELLES",6.9,229,"UN PEU DIFFICILE (3/6)",null,"2 h 15 mn",135," "]
["Doller","Niederbruck",391,"LE TOUR DES FERMES-AUBERGES",12.8,636,"ASSEZ DIFFICILE (4/6)",null,"4 h 15 mn",255," "]
["Thur/Doller","Michelbach",392,"LE LAC ET ASPACH-LE-BAS ",10.6,119,"ASSEZ FACILE (2/6)",null,"2 h 30 mn",150," "]
["Sundgau","Sondersdorf",393,"LE SUNDGAU SUBLIME ET SES CROIX",17.2,483,"ASSEZ DIFFICILE (4/6)","x","5 h",300," "]
["Thur","Saint Amarin",394,"LE HAAG ET LE MOORFELD",18.2,907,"ASSEZ DIFFICILE (4/6)",null,"5 h 30 mn",330," "]
["Thur/Doller","Rammersmatt",395,"UN NOUVEAU VARIANT ",12.7,444,"UN PEU DIFFICILE (3/6)","x","4 h",240," "]
["Thur","Steinbach",396,"ERZENBACH ET SCHLETZENBOURG",6.8,208,"ASSEZ FACILE (2/6)",null,"2 h 15 mn",135," "]
["Doller","Rimbach près Masevaux",397,"LE TOUR DES LACS",13,615,"UN PEU DIFFICILE (3/6)",null,"3 h 45 mn",225," "]
["Thur","Cernay",398,"PETITE BALADE AUTOUR DE SAINT-ANDRÉ",8.4,24,"ASSEZ FACILE (2/6)","x","2 h",120," "]
["Lauch","Guebwiller",399,"LES CARRIÈRES DE BERGHOLTZ",8.5,277,"UN PEU DIFFICILE (3/6)",null,"2 h 30 mn",150," "]
["Sundgau","Buethwiller",400,"LES DOUCES COLLINES DU SUNDGAU",14.5,117,"ASSEZ FACILE (2/6)","x","3 h 45 mn",225," "]
["Thur","Vieux Thann",401,"WALDKAPELLE, AMSELKOPF, ETC…",8.5,313,"ASSEZ FACILE (2/6)","x","3 h",180," "]
["Doller","Masevaux",402,"EN FORÊT COMMUNALE, SUR LE CHEMIN MAURICE CUNY",12.2,430,"UN PEU DIFFICILE (3/6)","x","3 h 15 mn",195," "]
["Doller","Michelbach",403,"UN NOUVEAU CIRCUIT",9.9,121,"ASSEZ FACILE (2/6)",null,"2 h 30 mn",150," "]
["Sundgau","Altenach",404,"MON SEMI-MARATHON DANS LE SUNDGAU ",27.9,242,"UN PEU DIFFICILE (3/6)","x","6 h",360," "]
["Doller","Oberbruck",405,"COL DE RIMBACH ET FUCHSFELSEN",17.2,634,"ASSEZ DIFFICILE (4/6)",null,"5 h",300," "]
["Doller","Sewen",406,"AUPRÈS DE MON ARBRE, AU SCHLUMPF-FENNEMATT",12.9,530,"UN PEU DIFFICILE (3/6)",null,"3 h 45 mn",225," "]
["Thur","Willer s/Thur",407,"FREUNDSTEIN ET OSTEIN",15.3,559,"UN PEU DIFFICILE (3/6)","x","4 h 15mn",255," "]
["Thur/Doller","Michelbach",408,"MON CIRCUIT TOURISTIQUE",14.6,345,"ASSEZ FACILE (2/6)",null,"3 h 45 mn",225," "]
["Lauch","Soultz",409,"AUTOUR DE JUNGHOLTZ",10.7,345,"UN PEU DIFFICILE (3/6)","x","2 h 45 mn",165," "]
["Plaine","Wittelsheim",410,"EN FORÊT DE NONNENBRUCH",12.8,45,"ASSEZ FACILE (2/6)",null,"2 h 45 mn",165," "]
["Thur","Thann",411,"AU COL DU HUNDSRUCK",14.6,481,"UN PEU DIFFICILE (3/6)",null,"3 h 30 mn",210," "]
["Doller","Aspach Le Haut",412,"VERS BOURBACH-LE-BAS",13.8,217,"ASSEZ FACILE (2/6)",null,"3 h",180," "]
["Doller","Schweighouse",413,"REININGUE ET OELENBERG",14.6,56,"ASSEZ FACILE (2/6)","x","3 h",180," "]
["Plaine","Berrwiller",414,"CANTINE ZELLER ET REHFELSEN",12.1,591,"UN PEU DIFFICILE (3/6)",null,"3 h 45 mn",225]
["Thur","Col Amic",415,"NOUVEAU CIRCUIT EN FORÊT RECULÉE DE SOULTZ",14.4,697,"UN PEU DIFFICILE (3/6)",null,"4 h",240]
["Thur","Steinbach",416,"SOURCES ET FONTAINES",11.1,453,"UN PEU DIFFICILE (3/6)",null,"3 h 15 mn",195]
["Thur","Col du Herrenfluh",417,"LE TEST POUR DES CHAUSSURES NEUVES",9.6999999999999993,496,"UN PEU DIFFICILE (3/6)",null,"3 h",180]
["Sundgau","Burnhaupt Le Bas",418,"DES BUNKERS, MAIS PAS QUE…",19.100000000000001,159,"ASSEZ FACILE (2/6)","x","4 h 30 mn",270]
["Thur","Ranspach",419,"NOUVEAU CIRCUIT DE DÉCOUVERTE DU DENGELBERG",5.8,190,"ASSEZ FACILE (2/6)",null,"2 h",120]
["Doller","Bourbach le Haut",420,"LE GRAND TOUR DU ROSSBERG",18.600000000000001,808,"ASSEZ DIFFICILE (4/6)",null,"5 h",300]
["Sundgau","Hagenbach",421,"CIRCUITS DES MOISSONS ET DE MARGUERITE",18.2,152,"UN PEU DIFFICILE (3/6)","x","4 h 30 mn",270]
["Thur","Oderen",422,"LE CIRCUIT DU FELSACH",14.3,707,"ASSEZ DIFFICILE (4/6)",null,"4 h 45 mn",285]
["Sundgau","Feldbach",423,"LA TOURNÉE DES VILLAGES",18.899999999999999,369,"UN PEU DIFFICILE (3/6)","x","4 h 30 mn",270]
["Crêtes","Col de la Schlucht",424,"SUR LE SENTIER DES ROCHES, VERSION 2021",9.8000000000000007,432,"ASSEZ DIFFICILE (4/6)",null,"3 h 15 mn",195]
["Thur","Husseren",425,"CHAUVELIN ET HUSELBERG",10,454,"UN PEU DIFFICILE (3/6)",null,"3 h",180]
["Sundgau","Flaxlanden",426,"BALADE VERS BRUEBACH",7.4,119,"TRÈS FACILE (1/6)","x","2 h",120]
["Doller","Oberbruck",427,"BALADE SUR LES HAUTEURS",4.5,203,"ASSEZ FACILE (2/6)",null,"1 h 45 mn",105]
["Doller","Lauw",428,"BALADE DANS L’OBERWALD",5.9,66,"TRÈS FACILE (1/6)","x","1 h 30 mn",90]
["Crêtes (Sud)","Markstein",429,"BALADE SUR LES CHAUMES ET AUTOUR DU TREHKOPF ",7.4,188,"ASSEZ FACILE (2/6)","x","2 h 15 mn",135]
["Thur","Col du Herrenfluh",430,"BALADE AUTOUR DU MOLKENRAIN",7.5,315,"UN PEU DIFFICILE (3/6)",null,"2 h 15 mn",135]
["Thur","Thann",431,"BALADE À LA ROCHE ALBERT",8.8000000000000007,354,"UN PEU DIFFICILE (3/6)",null,"2 h 45 mn",165]
["Sundgau","Luemschwiller",432,"BALADE VERS STEINBRUNN",11.7,238,"ASSEZ FACILE (2/6)","x","3 h 15 mn",195]
["Thur","Storckensohn",433,"CIRCUIT DU GAZON VERT",10.6,560,"UN PEU DIFFICILE (3/6)",null,"3 h 30 mn",210]
["Sundgau","Liegsdorf",434,"LE GRAND TOUR DU GLASERBERG",16.600000000000001,623,"UN PEU DIFFICILE (3/6)",null,"5 h 30 mn",330]
["Sundgau","Ballersdorf",435,"LE CIRCUIT DU VIADUC",6.1,83,"TRÈS FACILE (1/6)","x","1 h 45 mn",105]
["Sundgau","Liebsdorf",436,"LE CIRCUIT DU PLAN D’EAU ",9.5,187,"ASSEZ FACILE (2/6)","x","2 h 30 mn",150]
["Thur","Moosch",437,"LA VUE DE GEISHOUSE",10,472,"UN PEU DIFFICILE (3/6)",null,"3 h",180]
["Lauch","Orschwihr",438,"LE BOLLENBERG, SANS MYSTÈRE",7.8,157,"ASSEZ FACILE (2/6)","x","2 h 15 mn",135]
["Thur","Kruth-Wildenstein",439,"LE TOUR DU LAC, VERSION 2021",8.5,394,"UN PEU DIFFICILE (3/6)",null,"3 h",180]
["Crêtes","Col de la Schlucht",440,"HIRSCHSTEINE ET LAC VERT ",12.5,501,"UN PEU DIFFICILE (3/6)",null,"4 h",240]
["Sundgau","Ferrette",441,"LE CIRCUIT DES BELVÉDÈRES",12.8,437,"UN PEU DIFFICILE (3/6)",null,"5 h",300]
["Plaine","Bollwiller",442,"DE LA PLAINE AU VIGNOBLE ",9.3000000000000007,93,"ASSEZ FACILE (2/6)","x","2 h 15 mn",135]
["Thur","Thann",443,"LE GRAND CIRCUIT DU BELACKER ",27.5,1004,"ASSEZ DIFFICILE (4/6)",null,"7 h",420]
["Vallée Kaysersberg","Kaysersberg",444,"FORÊTS ET CHAPELLES",11,444,"UN PEU DIFFICILE (3/6)","x","3 h",180]
["Vallée de la Thur","Moosch",445,"MOOSCH-LE-GRAND-BALLON-ET-LE-STORKENKOPF","23,/8",1203,"DIFFICILE (5/6)",null,"8h",480]
["Vallée de Masevaux","Sentheim",446,"LA DOLLER ET LA GÉOLOGIE ",11.2,108,"ASSEZ FACILE (2/6)",null,"3h",180]
["Sundgau - Bernwiller","Ammertzwiller",447,"AMMERTZWILLER : LE CIRCUIT DE LA MÉMOIRE ",10.5,183,{"$f":"$G$440","v":"ASSEZ FACILE (2/6)"},"x","2h30",150]
["Vallée Doller","Rimbach prés Masevaux",448,"RIMBACH-PRÈS-MASEVAUX : PERCHES ET NEUWEIHER ",12.7,685,{"$f":"$G$437","v":"ASSEZ DIFFICILE (4/6)"},null,"4h15",255]
["Altkirch","Carspach",449,"CARSPACH : CIRCUIT ST-GLÜCKER ",10.8,200,{"$f":"$G$441","v":"ASSEZ FACILE (2/6)"},"x","2h45",165]
["Vallée de Masevaux","Sentheim",450,"SENTHEIM : CIRCUIT DE LA CHAPELLE DES MINEURS",7.5,132,"ASSEZ FACILE (2/6)",null,"2h",120]
["Grand Ballon","Grand Ballon",451,"GRAND BALLON : LE CIRCUIT DES SOMMETS",16.3,649,{"$f":"$G$437","v":"ASSEZ DIFFICILE (4/6)"},null,"5h",300]
[{"$f":"$A$423","v":"Crêtes (Sud)"},"Markstein",452,"LE MARKSTEIN : LE CIRCUIT DU LAC DE LA LAUCH",13.4,477,"UN PEU DIFFICILE (3/6)",null,"3h45",225]
["Lauch-Guebwiller","Lautenbach-Zell",453,"LAUTENBACH : LE CHAUDRON DU DIABLE",7,275,"ASSEZ FACILE(2,5/6)",null,"2h15",135]
["Vallée de Masevaux","Lac de Lachtelweiher ",454,"KIRCHBERG : LOCHBERG, WISSGRUT ET FENNEMATT ",17.3,660,{"$f":"$G$437","v":"ASSEZ DIFFICILE (4/6)"},null,"5h",300]
["Vallée de Masevaux","Mortzwiller",455,"MORTZWILLER : CIRCUIT DU HAUT-SOULTZBACH ",7.3,78,"ASSEZ FACILE (2/6)","x","2h",120]
["Sundgau (Hirsingue)","Bettendorf",456,"BETTENDORF : AUTOUR DE LA VOIE ROMAINE ",18.3,257,"UN PEU DIFFICILE (3/6)","x","4h30",270]
["Région Mulhouse","Galfingue",457,"GALFINGUE : CIRCUIT INTERCOMMUNAL",9.9,68,"ASSEZ FACILE (2,5/6)","x","2h30",150]
["Route des Crêtes","Au pied du Hohneck",458,"LE HOHNECK : FRANKENTHAL, SCHIESSROTHRIED,WORMSPEL ",11.7,630,"ASSEZ DIFFICILE (4/6)",null,"4h",240]
["Territoire-de-Belfort","Granvillars",459,"GRANDVILLARS : UNE PROMENADE ET UN PEU D’HISTOIRE",7.2,73,"TRES FACILE (1/6)","x",2,120]
["Lautenbach/Linthal","Col de Boenlesgrab",460,"LINTHAL : LE GRAND TOUR DU PETIT BALLON ",15.3,679,"ASSEZ DIFFICILE (4/6)",null,5,300]
[" Ballon d’Alsace","Col du Ballon d’Alsace",461,"BALLON D’ALSACE : DÉJEUNER EN PAIX À ‘‘LA PETITE CHAUME’’",15.5,732,"ASSEZ DIFFICILE (4/6)",null,5,300]
["Thann-Masevaux","Col du Hundsrück",462,"COL DU HUNDSRUCK : LE PETIT ‘8’ DU THANNER HUBEL",7.6,389,"UN PEU DIFFICILE (3/6)",null,"2h15",135]
[null,"Masevaux",463,"LE SENTIER HISTORIQUE DU MONTORI ",11,499,"UN PEU DIFFICILE (3/6)",null,"3h30",210]
[null,"Wegscheid",464,"CIRCUIT DU BELVÈRE DU FUCHSFELSEN",14.3,748,"DIFFICILE (5/6)",null,"5h30",330]
[null,"Hartmannwiller",465,"OLLWILLER ET WUENHEIM",5.7,85,"FACILE (2/6)",null,"1h45",105]
[null,"Saint-Amarin",466,"MONTER AU BELACKER",14.8,731,"UN PEU DIFFICILE (3/6)",null,"4h30",270]
[null,"Rammersmatt",467,"RAMMERSMATT : LA TOURNÉE DES POPOTES",7.3,288,"ASSEZ FACILE(2,5/6)",null,"2h15",135]
[]
[null,null,null,null,null,null,null,null,null,null," "]
["TOTAL",null,null,"Totaux",{"$f":"SUM(E2:E463)","v":6217.6000000000013},{"$f":"SUM(F2:F463)","v":203883},null,"heures",null,{"$f":"(SUM(J2:J463)/60)","v":1817.3333333333333}," "]
[null,null,null,"Moyenne",{"$f":"AVERAGE(E2:E463)","v":13.725386313465787},{"$f":"AVERAGE(F2:F463)","v":444.18954248366015},null,"h moyenne",null,{"$f":"AVERAGE(J2:J463)/60","v":3.9593318809005082}," "]
[null,null,null,null,null,null,null,null,null,null," "]
[null,null,null,null,null,null,null,null,null,null," "]
[null,null,null,null,null,null,null,null,null,null," "]
[null,null,null,null,null,null,null,null,null,null," "]
[null,null,null,null,null,null,null,null,null,null," "]
[null,null,null,null,null,null,null,null,null,null," "]
[null,null,null,null,null,null,null,null,null,null," "]
[null,null,null,null,null,null,null,null,null,null," "]
[null,null,null,null,null,null,null,null,null,null," "]
[null,null,null,null,null,null,null,null,null,null," "]
[null,null,null,null,null,null,null,null,null,null," "]
[null,null,null,null,null,null,null,null,null,null," "]
[null,null,null,null,null,null,null,null,null,null," "]
[null,null,null,null,null,null,null,null,null,null," "]
[null,null,null,null,null,null,null,null,null,null," "]
[null,null,null,null,null,null,null,null,null,null," "]

{"sheet":"Articles divers","index":1,"n_rows":77,"n_cols":9,"rows_kept":77,"cut":false,"hidden":false,"merged":[]}
["Région","Lieux de Départ","Ref article","Titre","Distance KM","Dénivelé +","Difficulté","Durée (H)","Durée (Mn)"]
[null,null,"2016/04","LE HERRENFLUH (1/3)"]
[null,null,"2016/04","LE HERRENFLUH (2/3)"]
[null,null,"2016/04","LE HERRENFLUH (3/3)"]
[null,null,"2016/04","ALERTE !"]
[null,null,"2016/05","LA BAECHERKOPFHISLA"]
[null,null,"2016/05","LA CHAPELLE DU FREUNDSTEIN"]
[null,null,"2016/06","GARE AUX TIQUES"]
[null,null,"2016/06","ABRI VOGESAPFADHISLA"]
[null,null,"2016/06","ABRI DU BLAUFELS"]
[null,null,"2016/06","MISERE AU REHBRUNNEL"]
[null,null,"2016/06","LA SOURCE DE LA LAUCH"]
[null,null,"2016/07","L'ABRI DU HOCHBURG"]
[null,null,"2016/07","LE CHÂTEAU DE FREUNDSTEIN"]
["Vallée Munster","Col de la Schlucht","2016/08","LE SENTIER DES ROCHES",9.6999999999999993,404,"ASSEZ DIFFICILE (4/6)","3 à 4 h 00"]
[null,null,"2016/08","UNE SOURCE EN PLEIN NA'THUR"]
[null,null,"2016/08","LA DOLLER, UNE EAU QUI COULE DE SOURCE !"]
[null,null,"2016/10","RANDONNEE : L'EQUIPEMENT DE BASE"]
[null,null,"2016/11","RANDONNEURS CHERCHENT ABRIS POUR L'HIVER"]
[null,null,"2016/11","L'ABRI FAUCON CRECERELLE"]
[null,null,"2016/12","RANDONNEE : L'EQUIPEMENT D'HIVER"]
[null,"Staffelfelden","2017/01","STAFFELFELDEN : FERME DE LA BUSSIERE (AUSSI APPELEE LA BUSSIERE OU BUSSIERE)"]
[null,null,"2017/01","LES GRILLADES DE LA NOUVELLE ANNEE"]
[null,null,"2017/02","LISTING DE MES 50 PREMIERES RANDONNEES "]
[null,"Cernay","2017/02","CERNAY : EXTENSION PERIURBAINE"]
[null,"Cernay","2017/02","CERNAY : PROMENADE URBAINE"]
[null,null,"2017/02","DES ABRIS POUR L'HIVER : 1ERE LISTE COMPLEMENTAIRE"]
["Lauch","Guebwiller","2017/03","GUEBWILLER : PROMENADE URBAINE 1/2"]
["Lauch","Guebwiller","2017/03","GUEBWILLER : PROMENADE URBAINE 2/2"]
[null,null,"2017/04","BON ANNIVERSAIRE !!!"]
[null,null,"2017/04","ALIMENTATION : UNE RATION DE COMBAT !"]
["Lauch","Guebwiller","2017/04","GUEBWILLER : LE VIGNOBLE",3.5,80,"AUCUNE","1 h 30",90]
[null,null,"2017/05","C'EST LA FÊTE : ENCORE !?!"]
[null,null,"2017/09","LISTING DE MES 100 PREMIERES RANDONNEES ET DE TOUT LE RESTE"]
[null,null,"2017/11","SAISON 2017 LE TEMPS DES STATISTIQUES"]
[null,null,"2018/01","KRUTH : LE CHALET \"S'STRASS HIESEL\""]
[null,null,"2018/02","MOUNTAINWILDERNESS LA MONTAGNE SANS VOITURE"]
[null,"Cernay","2018/02","CERNAY : UNE NOUVELLE PROMENADE URBAINE",6.4,29,"AUCUNE","1 h 45",75]
[null,null,"2018/02","ET HOP !"]
[null,null,"2018/03","MALADIE DE LYME : EN ALSACE UN NOMBRE DE CAS 2 FOIS SUPERIEUR A LA MOYENNE NATIONALE"]
[null,null,"2018/03","QUESTION DE DENIVELE POSITIF"]
[null,null,"2018/04","VOICI NOTRE DEUXIEME ANNIVERSAIRE"]
[null,null,"2018/05","LA PECHE ET LES ROCHES"]
[null,"Soultz","2018/07","SOULTZ : CIRCUIT DE DECOUVERTE",null,null,null,"1 h 30 à 2 h 00"]
[null,null,"2018/07","50 000 VISITEURS"]
[null,null,"2018/07","LEVER DE SOLEIL AU GRAND BALLON"]
[null,null,"2018/09","UN BANDEAU, DES INFOS"]
[null,null,"2018/09","LE CAMP TURENNE"]
[null,null,"2018/09","QUOI DE NEUF ?"]
[null,null,"2018/09","AOUT 2018, LE MOIS DES RECORDS"]
[null,null,"2018/10","RENOUVELER SON EQUIPEMENT"]
[null,"Cernay","2018/10","CERNAY : UNE NOUVELLE PROMENADE",4.3,32,"TRES FACILE (1/6)","1 h 10 à 2 h 00"]
[null,null,"2019/01","TOP 6 DES ABRIS L-T-D : 1/6 CHALET GAUGLER, LE PLUS BEAU"]
[null,null,"2019/01","TOP 6 DES ABRIS L-T-D : 2/6 ABRI HOCHBURG, L'UN DES MIEUX SITUES"]
[null,null,"2019/01","TOP 6 DES ABRIS L-T-D : 3/6 ABRI FAUCON CRECERELLE, L'UN DES MIEUX SITUES"]
[null,null,"2019/01","ALIMENTATION : UNE RATION DE COMBAT !"]
[null,null,"2019/01","LTD RANDO 68 : BILAN DE L'ANNEE 2018"]
[null,null,"2019/02","TOP 6 DES ABRIS L-T-D : 4/6 ABRI BAECHERKOPFHISLA, LE PLUS CHALEUREUX"]
[null,null,"2019/02","TOP 6 DES ABRIS L-T-D : 5/6 ABRI MUNSTERAECKERLE, LE PLUS MIMI"]
[null,null,"2019/02","TOP 6 DES ABRIS L-T-D : 6/6 ABRI S'STRASS HIESEL, LE PLUS GLAMOUR"]
[null,null,"2019/02","LE GRAND SAUT"]
[null,null,"2019/02","LE CAPDES 200 ABONNES EST PASSE"]
[null,null,"2019/02","OVERBLOG A REPONDU"]
[null,null,"2019/02","PETIT BUG SUR LE BLOG"]
[null,null,"2019/02","JUSTE UNE PRECISION TECHNIQUE"]
["Thur","Urbes","2019/02","URBES : MES ERREURS DANS LA NEIGE"]
[null,null,"2019/03","OOPS"]
[null,null,"2019/03","BON ANNIVERSAIRE MON PETIT"]
[null,null,"2019/05","JUSTE UNE INFORMATION"]
[null,null,"2019/06","NOUVELLES FRAICHES SUR LE BLOG"]
[null,null,"2019/07","PREMIERE MISE A JOUR EXCEL"]
[null,null,"2019/07","RECAPITULATIF DES 250 RANDONNEES"]
["Thur","Bussang","2019/07","AU DEPART DU COL DE BUSSANG"]
[null,null,"2019/08","POUR BIEN COMMENCER LA RANDONNEE : QUELQUES CONSEILS ET 2 CIRCUITS ADAPTES"]
["Vallée Munster",null,"2019/09","LES RANDONNEES DE LA VALLEE DE MUNSTER"]
[null,null,"2019/09","TROISIEME MISE A JOUR EXCEL"]
[null,null,"2019/08","DEUXIEME MISE A JOUR EXCEL"]

{"sheet":"Feuil3","index":2,"n_rows":460,"n_cols":3,"rows_kept":460,"cut":false,"hidden":false,"merged":[]}
[{"$f":"AdrHyperlien(Randos!C2)","v":{"$error":"#NAME?"}},null,"Fn+Alt+F11 > Insertion > Module > Coller la fonction > Alt+Q"]
[{"$f":"AdrHyperlien(Randos!C3)","v":{"$error":"#NAME?"}}]
[{"$f":"AdrHyperlien(Randos!C4)","v":{"$error":"#NAME?"}},null,"Function AdrHyperlien(cell As Range)"]
[{"$f":"AdrHyperlien(Randos!C5)","v":{"$error":"#NAME?"}},null,"AdrHyperlien = cell.Hyperlinks(1).Address"]
[{"$f":"AdrHyperlien(Randos!C6)","v":{"$error":"#NAME?"}},null,"End Function"]
[{"$f":"AdrHyperlien(Randos!C7)","v":{"$error":"#NAME?"}}]
[{"$f":"AdrHyperlien(Randos!C8)","v":{"$error":"#NAME?"}},null,"=AdrHyperlien( )"]
[{"$f":"AdrHyperlien(Randos!C9)","v":{"$error":"#NAME?"}}]
[{"$f":"AdrHyperlien(Randos!C10)","v":{"$error":"#NAME?"}}]
[{"$f":"AdrHyperlien(Randos!C11)","v":{"$error":"#NAME?"}}]
[{"$f":"AdrHyperlien(Randos!C12)","v":{"$error":"#NAME?"}}]
[{"$f":"AdrHyperlien(Randos!C13)","v":{"$error":"#NAME?"}}]
[{"$f":"AdrHyperlien(Randos!C14)","v":{"$error":"#NAME?"}}]
[{"$f":"AdrHyperlien(Randos!C15)","v":{"$error":"#NAME?"}}]
[{"$f":"AdrHyperlien(Randos!C16)","v":{"$error":"#NAME?"}}]
[{"$f":"AdrHyperlien(Randos!C17)","v":{"$error":"#NAME?"}}]
[{"$f":"AdrHyperlien(Randos!C18)","v":{"$error":"#NAME?"}}]
[{"$f":"AdrHyperlien(Randos!C19)","v":{"$error":"#NAME?"}}]
[{"$f":"AdrHyperlien(Randos!C20)","v":{"$error":"#NAME?"}}]
[{"$f":"AdrHyperlien(Randos!C21)","v":{"$error":"#NAME?"}}]
[{"$f":"AdrHyperlien(Randos!C22)","v":{"$error":"#NAME?"}}]
[{"$f":"AdrHyperlien(Randos!C23)","v":{"$error":"#NAME?"}}]
[{"$f":"AdrHyperlien(Randos!C24)","v":{"$error":"#NAME?"}}]
[{"$f":"AdrHyperlien(Randos!C25)","v":{"$error":"#NAME?"}}]
[{"$f":"AdrHyperlien(Randos!C26)","v":{"$error":"#NAME?"}}]
[{"$f":"AdrHyperlien(Randos!C27)","v":{"$error":"#NAME?"}}]
[{"$f":"AdrHyperlien(Randos!C28)","v":{"$error":"#NAME?"}}]
[{"$f":"AdrHyperlien(Randos!C29)","v":{"$error":"#NAME?"}}]
[{"$f":"AdrHyperlien(Randos!C30)","v":{"$error":"#NAME?"}}]
[{"$f":"AdrHyperlien(Randos!C31)","v":{"$error":"#NAME?"}}]
[{"$f":"AdrHyperlien(Randos!C32)","v":{"$error":"#NAME?"}}]
[{"$f":"AdrHyperlien(Randos!C33)","v":{"$error":"#NAME?"}}]
[{"$f":"AdrHyperlien(Randos!C34)","v":{"$error":"#NAME?"}}]
[{"$f":"AdrHyperlien(Randos!C35)","v":{"$error":"#NAME?"}}]
[{"$f":"AdrHyperlien(Randos!C36)","v":{"$error":"#NAME?"}}]
[{"$f":"AdrHyperlien(Randos!C37)","v":{"$error":"#NAME?"}}]
[{"$f":"AdrHyperlien(Randos!C38)","v":{"$error":"#NAME?"}}]
[{"$f":"AdrHyperlien(Randos!C39)","v":{"$error":"#NAME?"}}]
[{"$f":"AdrHyperlien(Randos!C40)","v":{"$error":"#NAME?"}}]
[{"$f":"AdrHyperlien(Randos!C41)","v":{"$error":"#NAME?"}}]
[{"$f":"AdrHyperlien(Randos!C42)","v":{"$error":"#NAME?"}}]
[{"$f":"AdrHyperlien(Randos!C43)","v":{"$error":"#NAME?"}}]
[{"$f":"AdrHyperlien(Randos!C44)","v":{"$error":"#NAME?"}}]
[{"$f":"AdrHyperlien(Randos!C45)","v":{"$error":"#NAME?"}}]
[{"$f":"AdrHyperlien(Randos!C46)","v":{"$error":"#NAME?"}}]
[{"$f":"AdrHyperlien(Randos!C47)","v":{"$error":"#NAME?"}}]
[{"$f":"AdrHyperlien(Randos!C48)","v":{"$error":"#NAME?"}}]
[{"$f":"AdrHyperlien(Randos!C49)","v":{"$error":"#NAME?"}}]
[{"$f":"AdrHyperlien(Randos!C50)","v":{"$error":"#NAME?"}}]
[{"$f":"AdrHyperlien(Randos!C51)","v":{"$error":"#NAME?"}}]
[{"$f":"AdrHyperlien(Randos!C52)","v":{"$error":"#NAME?"}}]
[{"$f":"AdrHyperlien(Randos!C53)","v":{"$error":"#NAME?"}}]
[{"$f":"AdrHyperlien(Randos!C54)","v":{"$error":"#NAME?"}}]
[{"$f":"AdrHyperlien(Randos!C55)","v":{"$error":"#NAME?"}}]
[{"$f":"AdrHyperlien(Randos!C56)","v":{"$error":"#NAME?"}}]
[{"$f":"AdrHyperlien(Randos!C57)","v":{"$error":"#NAME?"}}]
[{"$f":"AdrHyperlien(Randos!C58)","v":{"$error":"#NAME?"}}]
[{"$f":"AdrHyperlien(Randos!C59)","v":{"$error":"#NAME?"}}]
[{"$f":"AdrHyperlien(Randos!C60)","v":{"$error":"#NAME?"}}]
[{"$f":"AdrHyperlien(Randos!C61)","v":{"$error":"#NAME?"}}]
[{"$f":"AdrHyperlien(Randos!C62)","v":{"$error":"#NAME?"}}]
[{"$f":"AdrHyperlien(Randos!C63)","v":{"$error":"#NAME?"}}]
[{"$f":"AdrHyperlien(Randos!C64)","v":{"$error":"#NAME?"}}]
[{"$f":"AdrHyperlien(Randos!C65)","v":{"$error":"#NAME?"}}]
[{"$f":"AdrHyperlien(Randos!C66)","v":{"$error":"#NAME?"}}]
[{"$f":"AdrHyperlien(Randos!C67)","v":{"$error":"#NAME?"}}]
[{"$f":"AdrHyperlien(Randos!C68)","v":{"$error":"#NAME?"}}]
[{"$f":"AdrHyperlien(Randos!C69)","v":{"$error":"#NAME?"}}]
[{"$f":"AdrHyperlien(Randos!C70)","v":{"$error":"#NAME?"}}]
[{"$f":"AdrHyperlien(Randos!C71)","v":{"$error":"#NAME?"}}]
[{"$f":"AdrHyperlien(Randos!C72)","v":{"$error":"#NAME?"}}]
[{"$f":"AdrHyperlien(Randos!C73)","v":{"$error":"#NAME?"}}]
[{"$f":"AdrHyperlien(Randos!C74)","v":{"$error":"#NAME?"}}]
[{"$f":"AdrHyperlien(Randos!C75)","v":{"$error":"#NAME?"}}]
[{"$f":"AdrHyperlien(Randos!C76)","v":{"$error":"#NAME?"}}]
[{"$f":"AdrHyperlien(Randos!C77)","v":{"$error":"#NAME?"}}]
[{"$f":"AdrHyperlien(Randos!C78)","v":{"$error":"#NAME?"}}]
[{"$f":"AdrHyperlien(Randos!C79)","v":{"$error":"#NAME?"}}]
[{"$f":"AdrHyperlien(Randos!C80)","v":{"$error":"#NAME?"}}]
[{"$f":"AdrHyperlien(Randos!C81)","v":{"$error":"#NAME?"}}]
[{"$f":"AdrHyperlien(Randos!C82)","v":{"$error":"#NAME?"}}]
[{"$f":"AdrHyperlien(Randos!C83)","v":{"$error":"#NAME?"}}]
[{"$f":"AdrHyperlien(Randos!C84)","v":{"$error":"#NAME?"}}]
[{"$f":"AdrHyperlien(Randos!C85)","v":{"$error":"#NAME?"}}]
[{"$f":"AdrHyperlien(Randos!C86)","v":{"$error":"#NAME?"}}]
[{"$f":"AdrHyperlien(Randos!C87)","v":{"$error":"#NAME?"}}]
[{"$f":"AdrHyperlien(Randos!C88)","v":{"$error":"#NAME?"}}]
[{"$f":"AdrHyperlien(Randos!C89)","v":{"$error":"#NAME?"}}]
[{"$f":"AdrHyperlien(Randos!C90)","v":{"$error":"#NAME?"}}]
[{"$f":"AdrHyperlien(Randos!C91)","v":{"$error":"#NAME?"}}]
[{"$f":"AdrHyperlien(Randos!C92)","v":{"$error":"#NAME?"}}]
[{"$f":"AdrHyperlien(Randos!C93)","v":{"$error":"#NAME?"}}]
[{"$f":"AdrHyperlien(Randos!C94)","v":{"$error":"#NAME?"}}]
[{"$f":"AdrHyperlien(Randos!C95)","v":{"$error":"#NAME?"}}]
[{"$f":"AdrHyperlien(Randos!C96)","v":{"$error":"#NAME?"}}]
[{"$f":"AdrHyperlien(Randos!C97)","v":{"$error":"#NAME?"}}]
[{"$f":"AdrHyperlien(Randos!C98)","v":{"$error":"#NAME?"}}]
[{"$f":"AdrHyperlien(Randos!C99)","v":{"$error":"#NAME?"}}]
[{"$f":"AdrHyperlien(Randos!C100)","v":{"$error":"#NAME?"}}]
[{"$f":"AdrHyperlien(Randos!C101)","v":{"$error":"#NAME?"}}]
[{"$f":"AdrHyperlien(Randos!C102)","v":{"$error":"#NAME?"}}]
[{"$f":"AdrHyperlien(Randos!C103)","v":{"$error":"#NAME?"}}]
[{"$f":"AdrHyperlien(Randos!C104)","v":{"$error":"#NAME?"}}]
[{"$f":"AdrHyperlien(Randos!C105)","v":{"$error":"#NAME?"}}]
[{"$f":"AdrHyperlien(Randos!C106)","v":{"$error":"#NAME?"}}]
[{"$f":"AdrHyperlien(Randos!C107)","v":{"$error":"#NAME?"}}]
[{"$f":"AdrHyperlien(Randos!C108)","v":{"$error":"#NAME?"}}]
[{"$f":"AdrHyperlien(Randos!C109)","v":{"$error":"#NAME?"}}]
[{"$f":"AdrHyperlien(Randos!C110)","v":{"$error":"#NAME?"}}]
[{"$f":"AdrHyperlien(Randos!C111)","v":{"$error":"#NAME?"}}]
[{"$f":"AdrHyperlien(Randos!C112)","v":{"$error":"#NAME?"}}]
[{"$f":"AdrHyperlien(Randos!C113)","v":{"$error":"#NAME?"}}]
[{"$f":"AdrHyperlien(Randos!C114)","v":{"$error":"#NAME?"}}]
[{"$f":"AdrHyperlien(Randos!C115)","v":{"$error":"#NAME?"}}]
[{"$f":"AdrHyperlien(Randos!C116)","v":{"$error":"#NAME?"}}]
[{"$f":"AdrHyperlien(Randos!C117)","v":{"$error":"#NAME?"}}]
[{"$f":"AdrHyperlien(Randos!C118)","v":{"$error":"#NAME?"}}]
[{"$f":"AdrHyperlien(Randos!C119)","v":{"$error":"#NAME?"}}]
[{"$f":"AdrHyperlien(Randos!C120)","v":{"$error":"#NAME?"}}]
[{"$f":"AdrHyperlien(Randos!C121)","v":{"$error":"#NAME?"}}]
[{"$f":"AdrHyperlien(Randos!C122)","v":{"$error":"#NAME?"}}]
[{"$f":"AdrHyperlien(Randos!C123)","v":{"$error":"#NAME?"}}]
[{"$f":"AdrHyperlien(Randos!C124)","v":{"$error":"#NAME?"}}]
[{"$f":"AdrHyperlien(Randos!C125)","v":{"$error":"#NAME?"}}]
[{"$f":"AdrHyperlien(Randos!C126)","v":{"$error":"#NAME?"}}]
[{"$f":"AdrHyperlien(Randos!C127)","v":{"$error":"#NAME?"}}]
[{"$f":"AdrHyperlien(Randos!C128)","v":{"$error":"#NAME?"}}]
[{"$f":"AdrHyperlien(Randos!C129)","v":{"$error":"#NAME?"}}]
[{"$f":"AdrHyperlien(Randos!C130)","v":{"$error":"#NAME?"}}]
[{"$f":"AdrHyperlien(Randos!C131)","v":{"$error":"#NAME?"}}]
[{"$f":"AdrHyperlien(Randos!C132)","v":{"$error":"#NAME?"}}]
[{"$f":"AdrHyperlien(Randos!C133)","v":{"$error":"#NAME?"}}]
[{"$f":"AdrHyperlien(Randos!C134)","v":{"$error":"#NAME?"}}]
[{"$f":"AdrHyperlien(Randos!C135)","v":{"$error":"#NAME?"}}]
[{"$f":"AdrHyperlien(Randos!C136)","v":{"$error":"#NAME?"}}]
[{"$f":"AdrHyperlien(Randos!C137)","v":{"$error":"#NAME?"}}]
[{"$f":"AdrHyperlien(Randos!C138)","v":{"$error":"#NAME?"}}]
[{"$f":"AdrHyperlien(Randos!C139)","v":{"$error":"#NAME?"}}]
[{"$f":"AdrHyperlien(Randos!C140)","v":{"$error":"#NAME?"}}]
[{"$f":"AdrHyperlien(Randos!C141)","v":{"$error":"#NAME?"}}]
[{"$f":"AdrHyperlien(Randos!C142)","v":{"$error":"#NAME?"}}]
[{"$f":"AdrHyperlien(Randos!C143)","v":{"$error":"#NAME?"}}]
[{"$f":"AdrHyperlien(Randos!C144)","v":{"$error":"#NAME?"}}]
[{"$f":"AdrHyperlien(Randos!C145)","v":{"$error":"#NAME?"}}]
[{"$f":"AdrHyperlien(Randos!C146)","v":{"$error":"#NAME?"}}]
[{"$f":"AdrHyperlien(Randos!C147)","v":{"$error":"#NAME?"}}]
[{"$f":"AdrHyperlien(Randos!C148)","v":{"$error":"#NAME?"}}]
[{"$f":"AdrHyperlien(Randos!C149)","v":{"$error":"#NAME?"}}]
[{"$f":"AdrHyperlien(Randos!C150)","v":{"$error":"#NAME?"}}]
[{"$f":"AdrHyperlien(Randos!C151)","v":{"$error":"#NAME?"}}]
[{"$f":"AdrHyperlien(Randos!C152)","v":{"$error":"#NAME?"}}]
[{"$f":"AdrHyperlien(Randos!C153)","v":{"$error":"#NAME?"}}]
[{"$f":"AdrHyperlien(Randos!C154)","v":{"$error":"#NAME?"}}]
[{"$f":"AdrHyperlien(Randos!C155)","v":{"$error":"#NAME?"}}]
[{"$f":"AdrHyperlien(Randos!C156)","v":{"$error":"#NAME?"}}]
[{"$f":"AdrHyperlien(Randos!C157)","v":{"$error":"#NAME?"}}]
[{"$f":"AdrHyperlien(Randos!C158)","v":{"$error":"#NAME?"}}]
[{"$f":"AdrHyperlien(Randos!C159)","v":{"$error":"#NAME?"}}]
[{"$f":"AdrHyperlien(Randos!C160)","v":{"$error":"#NAME?"}}]
[{"$f":"AdrHyperlien(Randos!C161)","v":{"$error":"#NAME?"}}]
[{"$f":"AdrHyperlien(Randos!C162)","v":{"$error":"#NAME?"}}]
[{"$f":"AdrHyperlien(Randos!C163)","v":{"$error":"#NAME?"}}]
[{"$f":"AdrHyperlien(Randos!C164)","v":{"$error":"#NAME?"}}]
[{"$f":"AdrHyperlien(Randos!C165)","v":{"$error":"#NAME?"}}]
[{"$f":"AdrHyperlien(Randos!C166)","v":{"$error":"#NAME?"}}]
[{"$f":"AdrHyperlien(Randos!C167)","v":{"$error":"#NAME?"}}]
[{"$f":"AdrHyperlien(Randos!C168)","v":{"$error":"#NAME?"}}]
[{"$f":"AdrHyperlien(Randos!C169)","v":{"$error":"#NAME?"}}]
[{"$f":"AdrHyperlien(Randos!C170)","v":{"$error":"#NAME?"}}]
[{"$f":"AdrHyperlien(Randos!C171)","v":{"$error":"#NAME?"}}]
[{"$f":"AdrHyperlien(Randos!C172)","v":{"$error":"#NAME?"}}]
[{"$f":"AdrHyperlien(Randos!C173)","v":{"$error":"#NAME?"}}]
[{"$f":"AdrHyperlien(Randos!C174)","v":{"$error":"#NAME?"}}]
[{"$f":"AdrHyperlien(Randos!C175)","v":{"$error":"#NAME?"}}]
[{"$f":"AdrHyperlien(Randos!C176)","v":{"$error":"#NAME?"}}]
[{"$f":"AdrHyperlien(Randos!C177)","v":{"$error":"#NAME?"}}]
[{"$f":"AdrHyperlien(Randos!C178)","v":{"$error":"#NAME?"}}]
[{"$f":"AdrHyperlien(Randos!C179)","v":{"$error":"#NAME?"}}]
[{"$f":"AdrHyperlien(Randos!C180)","v":{"$error":"#NAME?"}}]
[{"$f":"AdrHyperlien(Randos!C181)","v":{"$error":"#NAME?"}}]
[{"$f":"AdrHyperlien(Randos!C182)","v":{"$error":"#NAME?"}}]
[{"$f":"AdrHyperlien(Randos!C183)","v":{"$error":"#NAME?"}}]
[{"$f":"AdrHyperlien(Randos!C184)","v":{"$error":"#NAME?"}}]
[{"$f":"AdrHyperlien(Randos!C185)","v":{"$error":"#NAME?"}}]
[{"$f":"AdrHyperlien(Randos!C186)","v":{"$error":"#NAME?"}}]
[{"$f":"AdrHyperlien(Randos!C187)","v":{"$error":"#NAME?"}}]
[{"$f":"AdrHyperlien(Randos!C188)","v":{"$error":"#NAME?"}}]
[{"$f":"AdrHyperlien(Randos!C189)","v":{"$error":"#NAME?"}}]
[{"$f":"AdrHyperlien(Randos!C190)","v":{"$error":"#NAME?"}}]
[{"$f":"AdrHyperlien(Randos!C191)","v":{"$error":"#NAME?"}}]
[{"$f":"AdrHyperlien(Randos!C192)","v":{"$error":"#NAME?"}}]
[{"$f":"AdrHyperlien(Randos!C193)","v":{"$error":"#NAME?"}}]
[{"$f":"AdrHyperlien(Randos!C194)","v":{"$error":"#NAME?"}}]
[{"$f":"AdrHyperlien(Randos!C195)","v":{"$error":"#NAME?"}}]
[{"$f":"AdrHyperlien(Randos!C196)","v":{"$error":"#NAME?"}}]
[{"$f":"AdrHyperlien(Randos!C197)","v":{"$error":"#NAME?"}}]
[{"$f":"AdrHyperlien(Randos!C198)","v":{"$error":"#NAME?"}}]
[{"$f":"AdrHyperlien(Randos!C199)","v":{"$error":"#NAME?"}}]
[{"$f":"AdrHyperlien(Randos!C200)","v":{"$error":"#NAME?"}}]
[{"$f":"AdrHyperlien(Randos!C201)","v":{"$error":"#NAME?"}}]
[{"$f":"AdrHyperlien(Randos!C202)","v":{"$error":"#NAME?"}}]
[{"$f":"AdrHyperlien(Randos!C203)","v":{"$error":"#NAME?"}}]
[{"$f":"AdrHyperlien(Randos!C204)","v":{"$error":"#NAME?"}}]
[{"$f":"AdrHyperlien(Randos!C205)","v":{"$error":"#NAME?"}}]
[{"$f":"AdrHyperlien(Randos!C206)","v":{"$error":"#NAME?"}}]
[{"$f":"AdrHyperlien(Randos!C207)","v":{"$error":"#NAME?"}}]
[{"$f":"AdrHyperlien(Randos!C208)","v":{"$error":"#NAME?"}}]
[{"$f":"AdrHyperlien(Randos!C209)","v":{"$error":"#NAME?"}}]
[{"$f":"AdrHyperlien(Randos!C210)","v":{"$error":"#NAME?"}}]
[{"$f":"AdrHyperlien(Randos!C211)","v":{"$error":"#NAME?"}}]
[{"$f":"AdrHyperlien(Randos!C212)","v":{"$error":"#NAME?"}}]
[{"$f":"AdrHyperlien(Randos!C213)","v":{"$error":"#NAME?"}}]
[{"$f":"AdrHyperlien(Randos!C214)","v":{"$error":"#NAME?"}}]
[{"$f":"AdrHyperlien(Randos!C215)","v":{"$error":"#NAME?"}}]
[{"$f":"AdrHyperlien(Randos!C216)","v":{"$error":"#NAME?"}}]
[{"$f":"AdrHyperlien(Randos!C217)","v":{"$error":"#NAME?"}}]
[{"$f":"AdrHyperlien(Randos!C218)","v":{"$error":"#NAME?"}}]
[{"$f":"AdrHyperlien(Randos!C219)","v":{"$error":"#NAME?"}}]
[{"$f":"AdrHyperlien(Randos!C220)","v":{"$error":"#NAME?"}}]
[{"$f":"AdrHyperlien(Randos!C221)","v":{"$error":"#NAME?"}}]
[{"$f":"AdrHyperlien(Randos!C222)","v":{"$error":"#NAME?"}}]
[{"$f":"AdrHyperlien(Randos!C223)","v":{"$error":"#NAME?"}}]
[{"$f":"AdrHyperlien(Randos!C224)","v":{"$error":"#NAME?"}}]
[{"$f":"AdrHyperlien(Randos!C225)","v":{"$error":"#NAME?"}}]
[{"$f":"AdrHyperlien(Randos!C226)","v":{"$error":"#NAME?"}}]
[{"$f":"AdrHyperlien(Randos!C227)","v":{"$error":"#NAME?"}}]
[{"$f":"AdrHyperlien(Randos!C228)","v":{"$error":"#NAME?"}}]
[{"$f":"AdrHyperlien(Randos!C229)","v":{"$error":"#NAME?"}}]
[{"$f":"AdrHyperlien(Randos!C230)","v":{"$error":"#NAME?"}}]
[{"$f":"AdrHyperlien(Randos!C231)","v":{"$error":"#NAME?"}}]
[{"$f":"AdrHyperlien(Randos!C232)","v":{"$error":"#NAME?"}}]
[{"$f":"AdrHyperlien(Randos!C233)","v":{"$error":"#NAME?"}}]
[{"$f":"AdrHyperlien(Randos!C234)","v":{"$error":"#NAME?"}}]
[{"$f":"AdrHyperlien(Randos!C235)","v":{"$error":"#NAME?"}}]
[{"$f":"AdrHyperlien(Randos!C236)","v":{"$error":"#NAME?"}}]
[{"$f":"AdrHyperlien(Randos!C237)","v":{"$error":"#NAME?"}}]
[{"$f":"AdrHyperlien(Randos!C238)","v":{"$error":"#NAME?"}}]
[{"$f":"AdrHyperlien(Randos!C239)","v":{"$error":"#NAME?"}}]
[{"$f":"AdrHyperlien(Randos!C240)","v":{"$error":"#NAME?"}}]
[{"$f":"AdrHyperlien(Randos!C241)","v":{"$error":"#NAME?"}}]
[{"$f":"AdrHyperlien(Randos!C242)","v":{"$error":"#NAME?"}}]
[{"$f":"AdrHyperlien(Randos!C243)","v":{"$error":"#NAME?"}}]
[{"$f":"AdrHyperlien(Randos!C244)","v":{"$error":"#NAME?"}}]
[{"$f":"AdrHyperlien(Randos!C245)","v":{"$error":"#NAME?"}}]
[{"$f":"AdrHyperlien(Randos!C246)","v":{"$error":"#NAME?"}}]
[{"$f":"AdrHyperlien(Randos!C247)","v":{"$error":"#NAME?"}}]
[{"$f":"AdrHyperlien(Randos!C248)","v":{"$error":"#NAME?"}}]
[{"$f":"AdrHyperlien(Randos!C249)","v":{"$error":"#NAME?"}}]
[{"$f":"AdrHyperlien(Randos!C250)","v":{"$error":"#NAME?"}}]
[{"$f":"AdrHyperlien(Randos!C251)","v":{"$error":"#NAME?"}}]
[{"$f":"AdrHyperlien(Randos!C252)","v":{"$error":"#NAME?"}}]
[{"$f":"AdrHyperlien(Randos!C253)","v":{"$error":"#NAME?"}}]
[{"$f":"AdrHyperlien(Randos!C254)","v":{"$error":"#NAME?"}}]
[{"$f":"AdrHyperlien(Randos!C255)","v":{"$error":"#NAME?"}}]
[{"$f":"AdrHyperlien(Randos!C256)","v":{"$error":"#NAME?"}}]
[{"$f":"AdrHyperlien(Randos!C257)","v":{"$error":"#NAME?"}}]
[{"$f":"AdrHyperlien(Randos!C258)","v":{"$error":"#NAME?"}}]
[{"$f":"AdrHyperlien(Randos!C259)","v":{"$error":"#NAME?"}}]
[{"$f":"AdrHyperlien(Randos!C260)","v":{"$error":"#NAME?"}}]
[{"$f":"AdrHyperlien(Randos!C261)","v":{"$error":"#NAME?"}}]
[{"$f":"AdrHyperlien(Randos!C262)","v":{"$error":"#NAME?"}}]
[{"$f":"AdrHyperlien(Randos!C263)","v":{"$error":"#NAME?"}}]
[{"$f":"AdrHyperlien(Randos!C264)","v":{"$error":"#NAME?"}}]
[{"$f":"AdrHyperlien(Randos!C265)","v":{"$error":"#NAME?"}}]
[{"$f":"AdrHyperlien(Randos!C266)","v":{"$error":"#NAME?"}}]
[{"$f":"AdrHyperlien(Randos!C267)","v":{"$error":"#NAME?"}}]
[{"$f":"AdrHyperlien(Randos!C268)","v":{"$error":"#NAME?"}}]
[{"$f":"AdrHyperlien(Randos!C269)","v":{"$error":"#NAME?"}}]
[{"$f":"AdrHyperlien(Randos!C270)","v":{"$error":"#NAME?"}}]
[{"$f":"AdrHyperlien(Randos!C271)","v":{"$error":"#NAME?"}}]
[{"$f":"AdrHyperlien(Randos!C272)","v":{"$error":"#NAME?"}}]
[{"$f":"AdrHyperlien(Randos!C273)","v":{"$error":"#NAME?"}}]
[{"$f":"AdrHyperlien(Randos!C274)","v":{"$error":"#NAME?"}}]
[{"$f":"AdrHyperlien(Randos!C275)","v":{"$error":"#NAME?"}}]
[{"$f":"AdrHyperlien(Randos!C276)","v":{"$error":"#NAME?"}}]
[{"$f":"AdrHyperlien(Randos!C277)","v":{"$error":"#NAME?"}}]
[{"$f":"AdrHyperlien(Randos!C278)","v":{"$error":"#NAME?"}}]
[{"$f":"AdrHyperlien(Randos!C279)","v":{"$error":"#NAME?"}}]
[{"$f":"AdrHyperlien(Randos!C280)","v":{"$error":"#NAME?"}}]
[{"$f":"AdrHyperlien(Randos!C281)","v":{"$error":"#NAME?"}}]
[{"$f":"AdrHyperlien(Randos!C282)","v":{"$error":"#NAME?"}}]
[{"$f":"AdrHyperlien(Randos!C283)","v":{"$error":"#NAME?"}}]
[{"$f":"AdrHyperlien(Randos!C284)","v":{"$error":"#NAME?"}}]
[{"$f":"AdrHyperlien(Randos!C285)","v":{"$error":"#NAME?"}}]
[{"$f":"AdrHyperlien(Randos!C286)","v":{"$error":"#NAME?"}}]
[{"$f":"AdrHyperlien(Randos!C287)","v":{"$error":"#NAME?"}}]
[{"$f":"AdrHyperlien(Randos!C288)","v":{"$error":"#NAME?"}}]
[{"$f":"AdrHyperlien(Randos!C289)","v":{"$error":"#NAME?"}}]
[{"$f":"AdrHyperlien(Randos!C290)","v":{"$error":"#NAME?"}}]
[{"$f":"AdrHyperlien(Randos!C291)","v":{"$error":"#NAME?"}}]
[{"$f":"AdrHyperlien(Randos!C292)","v":{"$error":"#NAME?"}}]
[{"$f":"AdrHyperlien(Randos!C293)","v":{"$error":"#NAME?"}}]
[{"$f":"AdrHyperlien(Randos!C294)","v":{"$error":"#NAME?"}}]
[{"$f":"AdrHyperlien(Randos!C295)","v":{"$error":"#NAME?"}}]
[{"$f":"AdrHyperlien(Randos!C296)","v":{"$error":"#NAME?"}}]
[{"$f":"AdrHyperlien(Randos!C297)","v":{"$error":"#NAME?"}}]
[{"$f":"AdrHyperlien(Randos!C298)","v":{"$error":"#NAME?"}}]
[{"$f":"AdrHyperlien(Randos!C299)","v":{"$error":"#NAME?"}}]
[{"$f":"AdrHyperlien(Randos!C300)","v":{"$error":"#NAME?"}}]
[{"$f":"AdrHyperlien(Randos!C301)","v":{"$error":"#NAME?"}}]
[{"$f":"AdrHyperlien(Randos!C302)","v":{"$error":"#NAME?"}}]
[{"$f":"AdrHyperlien(Randos!C303)","v":{"$error":"#NAME?"}}]
[{"$f":"AdrHyperlien(Randos!C304)","v":{"$error":"#NAME?"}}]
[{"$f":"AdrHyperlien(Randos!C305)","v":{"$error":"#NAME?"}}]
[{"$f":"AdrHyperlien(Randos!C306)","v":{"$error":"#NAME?"}}]
[{"$f":"AdrHyperlien(Randos!C307)","v":{"$error":"#NAME?"}}]
[{"$f":"AdrHyperlien(Randos!C308)","v":{"$error":"#NAME?"}}]
[{"$f":"AdrHyperlien(Randos!C309)","v":{"$error":"#NAME?"}}]
[{"$f":"AdrHyperlien(Randos!C310)","v":{"$error":"#NAME?"}}]
[{"$f":"AdrHyperlien(Randos!C311)","v":{"$error":"#NAME?"}}]
[{"$f":"AdrHyperlien(Randos!C312)","v":{"$error":"#NAME?"}}]
[{"$f":"AdrHyperlien(Randos!C313)","v":{"$error":"#NAME?"}}]
[{"$f":"AdrHyperlien(Randos!C314)","v":{"$error":"#NAME?"}}]
[{"$f":"AdrHyperlien(Randos!C315)","v":{"$error":"#NAME?"}}]
[{"$f":"AdrHyperlien(Randos!C316)","v":{"$error":"#NAME?"}}]
[{"$f":"AdrHyperlien(Randos!C317)","v":{"$error":"#NAME?"}}]
[{"$f":"AdrHyperlien(Randos!C318)","v":{"$error":"#NAME?"}}]
[{"$f":"AdrHyperlien(Randos!C319)","v":{"$error":"#NAME?"}}]
[{"$f":"AdrHyperlien(Randos!C320)","v":{"$error":"#NAME?"}}]
[{"$f":"AdrHyperlien(Randos!C321)","v":{"$error":"#NAME?"}}]
[{"$f":"AdrHyperlien(Randos!C322)","v":{"$error":"#NAME?"}}]
[{"$f":"AdrHyperlien(Randos!C323)","v":{"$error":"#NAME?"}}]
[{"$f":"AdrHyperlien(Randos!C324)","v":{"$error":"#NAME?"}}]
[{"$f":"AdrHyperlien(Randos!C325)","v":{"$error":"#NAME?"}}]
[{"$f":"AdrHyperlien(Randos!C326)","v":{"$error":"#NAME?"}}]
[{"$f":"AdrHyperlien(Randos!C327)","v":{"$error":"#NAME?"}}]
[{"$f":"AdrHyperlien(Randos!C328)","v":{"$error":"#NAME?"}}]
[{"$f":"AdrHyperlien(Randos!C329)","v":{"$error":"#NAME?"}}]
[{"$f":"AdrHyperlien(Randos!C330)","v":{"$error":"#NAME?"}}]
[{"$f":"AdrHyperlien(Randos!C331)","v":{"$error":"#NAME?"}}]
[{"$f":"AdrHyperlien(Randos!C332)","v":{"$error":"#NAME?"}}]
[{"$f":"AdrHyperlien(Randos!C333)","v":{"$error":"#NAME?"}}]
[{"$f":"AdrHyperlien(Randos!C334)","v":{"$error":"#NAME?"}}]
[{"$f":"AdrHyperlien(Randos!C335)","v":{"$error":"#NAME?"}}]
[{"$f":"AdrHyperlien(Randos!C336)","v":{"$error":"#NAME?"}}]
[{"$f":"AdrHyperlien(Randos!C337)","v":{"$error":"#NAME?"}}]
[{"$f":"AdrHyperlien(Randos!C338)","v":{"$error":"#NAME?"}}]
[{"$f":"AdrHyperlien(Randos!C339)","v":{"$error":"#NAME?"}}]
[{"$f":"AdrHyperlien(Randos!C340)","v":{"$error":"#NAME?"}}]
[{"$f":"AdrHyperlien(Randos!C341)","v":{"$error":"#NAME?"}}]
[{"$f":"AdrHyperlien(Randos!C342)","v":{"$error":"#NAME?"}}]
[{"$f":"AdrHyperlien(Randos!C343)","v":{"$error":"#NAME?"}}]
[{"$f":"AdrHyperlien(Randos!C344)","v":{"$error":"#NAME?"}}]
[{"$f":"AdrHyperlien(Randos!C345)","v":{"$error":"#NAME?"}}]
[{"$f":"AdrHyperlien(Randos!C346)","v":{"$error":"#NAME?"}}]
[{"$f":"AdrHyperlien(Randos!C347)","v":{"$error":"#NAME?"}}]
[{"$f":"AdrHyperlien(Randos!C348)","v":{"$error":"#NAME?"}}]
[{"$f":"AdrHyperlien(Randos!C349)","v":{"$error":"#NAME?"}}]
[{"$f":"AdrHyperlien(Randos!C350)","v":{"$error":"#NAME?"}}]
[{"$f":"AdrHyperlien(Randos!C351)","v":{"$error":"#NAME?"}}]
[{"$f":"AdrHyperlien(Randos!C352)","v":{"$error":"#NAME?"}}]
[{"$f":"AdrHyperlien(Randos!C353)","v":{"$error":"#NAME?"}}]
[{"$f":"AdrHyperlien(Randos!C354)","v":{"$error":"#NAME?"}}]
[{"$f":"AdrHyperlien(Randos!C355)","v":{"$error":"#NAME?"}}]
[{"$f":"AdrHyperlien(Randos!C356)","v":{"$error":"#NAME?"}}]
[{"$f":"AdrHyperlien(Randos!C357)","v":{"$error":"#NAME?"}}]
[{"$f":"AdrHyperlien(Randos!C358)","v":{"$error":"#NAME?"}}]
[{"$f":"AdrHyperlien(Randos!C359)","v":{"$error":"#NAME?"}}]
[{"$f":"AdrHyperlien(Randos!C360)","v":{"$error":"#NAME?"}}]
[{"$f":"AdrHyperlien(Randos!C361)","v":{"$error":"#NAME?"}}]
[{"$f":"AdrHyperlien(Randos!C362)","v":{"$error":"#NAME?"}}]
[{"$f":"AdrHyperlien(Randos!C363)","v":{"$error":"#NAME?"}}]
[{"$f":"AdrHyperlien(Randos!C364)","v":{"$error":"#NAME?"}}]
[{"$f":"AdrHyperlien(Randos!C365)","v":{"$error":"#NAME?"}}]
[{"$f":"AdrHyperlien(Randos!C366)","v":{"$error":"#NAME?"}}]
[{"$f":"AdrHyperlien(Randos!C367)","v":{"$error":"#NAME?"}}]
[{"$f":"AdrHyperlien(Randos!C368)","v":{"$error":"#NAME?"}}]
[{"$f":"AdrHyperlien(Randos!C369)","v":{"$error":"#NAME?"}}]
[{"$f":"AdrHyperlien(Randos!C370)","v":{"$error":"#NAME?"}}]
[{"$f":"AdrHyperlien(Randos!C371)","v":{"$error":"#NAME?"}}]
[{"$f":"AdrHyperlien(Randos!C372)","v":{"$error":"#NAME?"}}]
[{"$f":"AdrHyperlien(Randos!C373)","v":{"$error":"#NAME?"}}]
[{"$f":"AdrHyperlien(Randos!C374)","v":{"$error":"#NAME?"}}]
[{"$f":"AdrHyperlien(Randos!C375)","v":{"$error":"#NAME?"}}]
[{"$f":"AdrHyperlien(Randos!C376)","v":{"$error":"#NAME?"}}]
[{"$f":"AdrHyperlien(Randos!C377)","v":{"$error":"#NAME?"}}]
[{"$f":"AdrHyperlien(Randos!C378)","v":{"$error":"#NAME?"}}]
[{"$f":"AdrHyperlien(Randos!C379)","v":{"$error":"#NAME?"}}]
[{"$f":"AdrHyperlien(Randos!C380)","v":{"$error":"#NAME?"}}]
[{"$f":"AdrHyperlien(Randos!C381)","v":{"$error":"#NAME?"}}]
[{"$f":"AdrHyperlien(Randos!C382)","v":{"$error":"#NAME?"}}]
[{"$f":"AdrHyperlien(Randos!C383)","v":{"$error":"#NAME?"}}]
[{"$f":"AdrHyperlien(Randos!C384)","v":{"$error":"#NAME?"}}]
[{"$f":"AdrHyperlien(Randos!C385)","v":{"$error":"#NAME?"}}]
[{"$f":"AdrHyperlien(Randos!C386)","v":{"$error":"#NAME?"}}]
[{"$f":"AdrHyperlien(Randos!C387)","v":{"$error":"#NAME?"}}]
[{"$f":"AdrHyperlien(Randos!C388)","v":{"$error":"#NAME?"}}]
[{"$f":"AdrHyperlien(Randos!C389)","v":{"$error":"#NAME?"}}]
[{"$f":"AdrHyperlien(Randos!C390)","v":{"$error":"#NAME?"}}]
[{"$f":"AdrHyperlien(Randos!C391)","v":{"$error":"#NAME?"}}]
[{"$f":"AdrHyperlien(Randos!C392)","v":{"$error":"#NAME?"}}]
[{"$f":"AdrHyperlien(Randos!C393)","v":{"$error":"#NAME?"}}]
[{"$f":"AdrHyperlien(Randos!C394)","v":{"$error":"#NAME?"}}]
[{"$f":"AdrHyperlien(Randos!C395)","v":{"$error":"#NAME?"}}]
[{"$f":"AdrHyperlien(Randos!C396)","v":{"$error":"#NAME?"}}]
[{"$f":"AdrHyperlien(Randos!C397)","v":{"$error":"#NAME?"}}]
[{"$f":"AdrHyperlien(Randos!C398)","v":{"$error":"#NAME?"}}]
[{"$f":"AdrHyperlien(Randos!C399)","v":{"$error":"#NAME?"}}]
[{"$f":"AdrHyperlien(Randos!C400)","v":{"$error":"#NAME?"}}]
[{"$f":"AdrHyperlien(Randos!C401)","v":{"$error":"#NAME?"}}]
[{"$f":"AdrHyperlien(Randos!C402)","v":{"$error":"#NAME?"}}]
[{"$f":"AdrHyperlien(Randos!C403)","v":{"$error":"#NAME?"}}]
[{"$f":"AdrHyperlien(Randos!C404)","v":{"$error":"#NAME?"}}]
[{"$f":"AdrHyperlien(Randos!C405)","v":{"$error":"#NAME?"}}]
[{"$f":"AdrHyperlien(Randos!C406)","v":{"$error":"#NAME?"}}]
[{"$f":"AdrHyperlien(Randos!C407)","v":{"$error":"#NAME?"}}]
[{"$f":"AdrHyperlien(Randos!C408)","v":{"$error":"#NAME?"}}]
[{"$f":"AdrHyperlien(Randos!C409)","v":{"$error":"#NAME?"}}]
[{"$f":"AdrHyperlien(Randos!C410)","v":{"$error":"#NAME?"}}]
[{"$f":"AdrHyperlien(Randos!C411)","v":{"$error":"#NAME?"}}]
[{"$f":"AdrHyperlien(Randos!C412)","v":{"$error":"#NAME?"}}]
[{"$f":"AdrHyperlien(Randos!C413)","v":{"$error":"#NAME?"}}]
[{"$f":"AdrHyperlien(Randos!C414)","v":{"$error":"#NAME?"}}]
[{"$f":"AdrHyperlien(Randos!C415)","v":{"$error":"#NAME?"}}]
[{"$f":"AdrHyperlien(Randos!C416)","v":{"$error":"#NAME?"}}]
[{"$f":"AdrHyperlien(Randos!C417)","v":{"$error":"#NAME?"}}]
[{"$f":"AdrHyperlien(Randos!C418)","v":{"$error":"#NAME?"}}]
[{"$f":"AdrHyperlien(Randos!C419)","v":{"$error":"#NAME?"}}]
[{"$f":"AdrHyperlien(Randos!C420)","v":{"$error":"#NAME?"}}]
[{"$f":"AdrHyperlien(Randos!C421)","v":{"$error":"#NAME?"}}]
[{"$f":"AdrHyperlien(Randos!C422)","v":{"$error":"#NAME?"}}]
[{"$f":"AdrHyperlien(Randos!C423)","v":{"$error":"#NAME?"}}]
[{"$f":"AdrHyperlien(Randos!C424)","v":{"$error":"#NAME?"}}]
[{"$f":"AdrHyperlien(Randos!C425)","v":{"$error":"#NAME?"}}]
[{"$f":"AdrHyperlien(Randos!C426)","v":{"$error":"#NAME?"}}]
[{"$f":"AdrHyperlien(Randos!C427)","v":{"$error":"#NAME?"}}]
[{"$f":"AdrHyperlien(Randos!C428)","v":{"$error":"#NAME?"}}]
[{"$f":"AdrHyperlien(Randos!C429)","v":{"$error":"#NAME?"}}]
[{"$f":"AdrHyperlien(Randos!C430)","v":{"$error":"#NAME?"}}]
[{"$f":"AdrHyperlien(Randos!C431)","v":{"$error":"#NAME?"}}]
[{"$f":"AdrHyperlien(Randos!C432)","v":{"$error":"#NAME?"}}]
[{"$f":"AdrHyperlien(Randos!C433)","v":{"$error":"#NAME?"}}]
[{"$f":"AdrHyperlien(Randos!C434)","v":{"$error":"#NAME?"}}]
["http://ltd-rando68.over-blog.com/2021/07/ferrette-le-circuit-des-belvederes-r-441-12-8-km-d-437-m-5-h-3/6.html?utm_source=_ob_email&utm_medium=_ob_notification&utm_campaign=_ob_pushmail"]
["http://ltd-rando68.over-blog.com/2021/08/bollwiller-de-la-plaine-au-vignoble-r-442-9-3-km-d-93-m-2-h-15-mn-2/6.html?utm_source=_ob_email&utm_medium=_ob_notification&utm_campaign=_ob_pushmail"]
["http://ltd-rando68.over-blog.com/2021/08/thann-le-grand-circuit-du-belacker-r-443-27-5-km-d-1004-m-7-h-4/6.html"]
["http://ltd-rando68.over-blog.com/2021/08/kaysersberg-forets-et-chapelles-r-444-11-0-km-d-444-m-3-h-3/6.html"]
["http://ltd-rando68.over-blog.com/2021/08/moosch-le-grand-ballon-et-le-storkenkopf-r-444-23-8-km-d-1203-m-8-h-5/6.html"]
["http://ltd-rando68.over-blog.com/2021/08/sentheim-la-doller-et-la-geologie-r-446-11-2-km-d-108-m-3-h-2/6.html"]
["http://ltd-rando68.over-blog.com/2021/08/ammertzwiller-le-circuit-de-la-memoire-r-447-10-5-km-d-183-m-2-h-30-2/6.html"]
["http://ltd-rando68.over-blog.com/2021/09/rimbach-pres-masevaux-perches-et-neuweiher-r-448-12-7-km-d-685-m-4-h-15-mn-4/6.html"]
["http://ltd-rando68.over-blog.com/2021/09/carspach-circuit-st-glucker-r-449-10-8-km-d-200-m-2-h-45-mn-2/6.html"]
["http://ltd-rando68.over-blog.com/2021/09/sentheim-circuit-de-la-chapelle-des-mineurs-r-450-7-5-km-d-132-m-2-h-2/6.html"]
["http://ltd-rando68.over-blog.com/2021/09/grand-ballon-le-circuit-des-sommets-r-451-16-3-km-d-649-m-5-h-4/6.html?utm_source=_ob_email&utm_medium=_ob_notification&utm_campaign=_ob_pushmail"]
["http://ltd-rando68.over-blog.com/2021/09/le-markstein-le-circuit-du-lac-de-la-lauch-r-452-13-4-km-d-477-m-3-h-45-mn-3/6.html"]
["http://ltd-rando68.over-blog.com/2021/09/lautenbach-le-chaudron-du-diable-r-453-7-km-d-275-m-2-h-15-mn-2-5/6.html"]
["http://ltd-rando68.over-blog.com/2021/09/kirchberg-lochberg-wissgrut-et-fennematt-r-454-17-3-km-d-660-m-5-h-4/6.html"]
["http://ltd-rando68.over-blog.com/2021/09/mortzwiller-circuit-du-haut-soultzbach-r-455-7-3-km-d-78-m-2-h-2/6.html"]
["http://ltd-rando68.over-blog.com/2021/10/bettendorf-autour-de-la-voie-romaine-r-456-18-3-km-d-257-m-4-h-30-mn-3/6.html?utm_source=_ob_email&utm_medium=_ob_notification&utm_campaign=_ob_pushmail"]
["http://ltd-rando68.over-blog.com/2021/10/galfingue-circuit-intercommunal-r-457-9-9-km-d-68-m-2-h-30-mn-2-5/6.html?utm_source=_ob_email&utm_medium=_ob_notification&utm_campaign=_ob_pushmail"]
["http://ltd-rando68.over-blog.com/2021/10/le-hohneck-frankenthal-schiessrothried-et-wormspel-r-458-11-7-km-d-630-m-4-h-4/6.html?utm_source=_ob_email&utm_medium=_ob_notification&utm_campaign=_ob_pushmail"]
["http://ltd-rando68.over-blog.com/2021/10/grandvillars-une-promenade-et-un-peu-d-histoire-r-459-7-2-km-d-73-m-2-h-1/6.html?utm_source=_ob_email&utm_medium=_ob_notification&utm_campaign=_ob_pushmail"]
["http://ltd-rando68.over-blog.com/2021/10/linthal-le-grand-tour-du-petit-ballon-r-460-15-3-km-d-679-m-5-h-4/6.html?utm_source=_ob_email&utm_medium=_ob_notification&utm_campaign=_ob_pushmail"]
["http://ltd-rando68.over-blog.com/2021/10/ballon-d-alsace-dejeuner-en-paix-a-la-petite-chaume-r-461-15-5-km-d-732-m-5-h-4/6.html?utm_source=_ob_email&utm_medium=_ob_notification&utm_campaign=_ob_pushmail"]
["http://ltd-rando68.over-blog.com/2021/10/col-du-hundsruck-le-petit-8-du-thanner-hubel-r-462-7-6-km-d-389-m-2-h-15-mn-3/6.html?utm_source=_ob_email&utm_medium=_ob_notification&utm_campaign=_ob_pushmail"]
["http://ltd-rando68.over-blog.com/2021/10/masevaux-le-sentier-historique-du-montori-r-463-11-km-d-499-m-3-h-30-mn-3/6.html?utm_source=_ob_email&utm_medium=_ob_notification&utm_campaign=_ob_pushmail"]
["http://ltd-rando68.over-blog.com/2021/10/wegscheid-circuit-du-belvere-du-fuchsfelsen-r-464-14-3-km-d-748-m-5-h-30-mn-5/6.html?utm_source=_ob_email&utm_medium=_ob_notification&utm_campaign=_ob_pushmail"]
["http://ltd-rando68.over-blog.com/2021/10/hartmannswiller-ollwiller-et-wuenheim-r-465-5-7-km-d-85-m-1-h-45-mn-2/6.html?utm_source=_ob_email&utm_medium=_ob_notification&utm_campaign=_ob_pushmail"]
["http://ltd-rando68.over-blog.com/2021/11/saint-amarin-monter-au-belacker-r-466-14-8-km-d-731-m-4-h-30-mn-3/6.html?utm_source=_ob_email&utm_medium=_ob_notification&utm_campaign=_ob_pushmail"]
["http://ltd-rando68.over-blog.com/2021/11/rammersmatt-la-tournee-des-popotes-r-467-7-3-km-d-288-m-2-h-15-mn-2-5/6.html?utm_source=_ob_email&utm_medium=_ob_notification&utm_campaign=_ob_pushmail"]